Workbook

Sheet AGCC Annual
A1: Annual Avoided Generation Capacity Costs (AGCC) due to 1 kW reduction in Peak Load*
A2: All Prices in 2017 Dollars
A4: Year | B4: AGCC at Transmission Level | F4: AGCC at Distribution Level** | K4: Generator ICAP Prices by Region
B5: NYC | C5: LHV | D5: LI | E5: ROS | F5: NYC | G5: LHV | H5: LI | I5: ROS | K5: NYC | L5: LHV | M5: LI | N5: ROS
A6: ='ICAP Prices'!A9 -> 2017 | B6: =6*'AGCC Summer'!B6+6*'AGCC Winter'!B6 -> 85.97079717 | C6: =6*'AGCC Summer'!C6+6*'AGCC Winter'!C6 -> 83.3545831 | D6: =6*'AGCC Summer'!D6+6*'AGCC Winter'!D6 -> 62.18484323 | E6: =6*'AGCC Summer'!E6+6*'AGCC Winter'!E6 -> 18.45856327 | F6: =6*'AGCC Summer'!F6+6*'AGCC Winter'!F6 -> 92.64094522 | G6: =6*'AGCC Summer'!G6+6*'AGCC Winter'!G6 -> 89.82174903 | H6: =6*'AGCC Summer'!H6+6*'AGCC Winter'!H6 -> 67.00952935 | I6: =6*'AGCC Summer'!I6+6*'AGCC Winter'!I6 -> 19.89069317 | K6: =6*'AGCC Summer'!K6+6*'AGCC Winter'!K6 -> 83.39694933 | L6: =6*'AGCC Summer'!L6+6*'AGCC Winter'!L6 -> 80.43255192 | M6: =6*'AGCC Summer'!M6+6*'AGCC Winter'!M6 -> 53.02809299 | N6: =6*'AGCC Summer'!N6+6*'AGCC Winter'!N6 -> 14.37311275
A7: ='ICAP Prices'!A10 -> 2018 | B7: =6*'AGCC Summer'!B7+6*'AGCC Winter'!B7 -> 75.01071224 | C7: =6*'AGCC Summer'!C7+6*'AGCC Winter'!C7 -> 50.37754856 | D7: =6*'AGCC Summer'!D7+6*'AGCC Winter'!D7 -> 62.01610295 | E7: =6*'AGCC Summer'!E7+6*'AGCC Winter'!E7 -> 21.06183743 | F7: =6*'AGCC Summer'!F7+6*'AGCC Winter'!F7 -> 80.83050888 | G7: =6*'AGCC Summer'!G7+6*'AGCC Winter'!G7 -> 54.28615147 | H7: =6*'AGCC Summer'!H7+6*'AGCC Winter'!H7 -> 66.82769714 | I7: =6*'AGCC Summer'!I7+6*'AGCC Winter'!I7 -> 22.69594551 | K7: =6*'AGCC Summer'!K7+6*'AGCC Winter'!K7 -> 73.35828603 | L7: =6*'AGCC Summer'!L7+6*'AGCC Winter'!L7 -> 45.77943942 | M7: =6*'AGCC Summer'!M7+6*'AGCC Winter'!M7 -> 52.67247998 | N7: =6*'AGCC Summer'!N7+6*'AGCC Winter'!N7 -> 16.47010095
A8: ='ICAP Prices'!A11 -> 2019 | B8: =6*'AGCC Summer'!B8+6*'AGCC Winter'!B8 -> 80.42103647 | C8: =6*'AGCC Summer'!C8+6*'AGCC Winter'!C8 -> 52.69826364 | D8: =6*'AGCC Summer'!D8+6*'AGCC Winter'!D8 -> 46.33153752 | E8: =6*'AGCC Summer'!E8+6*'AGCC Winter'!E8 -> 20.13928381 | F8: =6*'AGCC Summer'!F8+6*'AGCC Winter'!F8 -> 86.66059964 | G8: =6*'AGCC Summer'!G8+6*'AGCC Winter'!G8 -> 56.78692202 | H8: =6*'AGCC Summer'!H8+6*'AGCC Winter'!H8 -> 49.92622578 | I8: =6*'AGCC Summer'!I8+6*'AGCC Winter'!I8 -> 21.70181445 | K8: =6*'AGCC Summer'!K8+6*'AGCC Winter'!K8 -> 79.39009819 | L8: =6*'AGCC Summer'!L8+6*'AGCC Winter'!L8 -> 48.30355729 | M8: =6*'AGCC Summer'!M8+6*'AGCC Winter'!M8 -> 38.89440931 | N8: =6*'AGCC Summer'!N8+6*'AGCC Winter'!N8 -> 15.72485689
A9: ='ICAP Prices'!A12 -> 2020 | B9: =6*'AGCC Summer'!B9+6*'AGCC Winter'!B9 -> 112.8653466 | C9: =6*'AGCC Summer'!C9+6*'AGCC Winter'!C9 -> 112.8653466 | D9: =6*'AGCC Summer'!D9+6*'AGCC Winter'!D9 -> 46.78689668 | E9: =6*'AGCC Summer'!E9+6*'AGCC Winter'!E9 -> 33.82618604 | F9: =6*'AGCC Summer'!F9+6*'AGCC Winter'!F9 -> 121.6221407 | G9: =6*'AGCC Summer'!G9+6*'AGCC Winter'!G9 -> 121.6221407 | H9: =6*'AGCC Summer'!H9+6*'AGCC Winter'!H9 -> 50.41691452 | I9: =6*'AGCC Summer'!I9+6*'AGCC Winter'!I9 -> 36.45063151 | K9: =6*'AGCC Summer'!K9+6*'AGCC Winter'!K9 -> 108.6450243 | L9: =6*'AGCC Summer'!L9+6*'AGCC Winter'!L9 -> 108.6450243 | M9: =6*'AGCC Summer'!M9+6*'AGCC Winter'!M9 -> 37.95611173 | N9: =6*'AGCC Summer'!N9+6*'AGCC Winter'!N9 -> 26.58618059
A10: ='ICAP Prices'!A13 -> 2021 | B10: =6*'AGCC Summer'!B10+6*'AGCC Winter'!B10 -> 143.9329926 | C10: =6*'AGCC Summer'!C10+6*'AGCC Winter'!C10 -> 143.9329926 | D10: =6*'AGCC Summer'!D10+6*'AGCC Winter'!D10 -> 49.37302816 | E10: =6*'AGCC Summer'!E10+6*'AGCC Winter'!E10 -> 39.45767724 | F10: =6*'AGCC Summer'!F10+6*'AGCC Winter'!F10 -> 155.1002076 | G10: =6*'AGCC Summer'!G10+6*'AGCC Winter'!G10 -> 155.1002076 | H10: =6*'AGCC Summer'!H10+6*'AGCC Winter'!H10 -> 53.20369414 | I10: =6*'AGCC Summer'!I10+6*'AGCC Winter'!I10 -> 42.51904875 | K10: =6*'AGCC Summer'!K10+6*'AGCC Winter'!K10 -> 142.4953635 | L10: =6*'AGCC Summer'!L10+6*'AGCC Winter'!L10 -> 142.4953635 | M10: =6*'AGCC Summer'!M10+6*'AGCC Winter'!M10 -> 39.81529544 | N10: =6*'AGCC Summer'!N10+6*'AGCC Winter'!N10 -> 31.12030316
A11: ='ICAP Prices'!A14 -> 2022 | B11: =6*'AGCC Summer'!B11+6*'AGCC Winter'!B11 -> 144.093718 | C11: =6*'AGCC Summer'!C11+6*'AGCC Winter'!C11 -> 144.093718 | D11: =6*'AGCC Summer'!D11+6*'AGCC Winter'!D11 -> 50.2489394 | E11: =6*'AGCC Summer'!E11+6*'AGCC Winter'!E11 -> 40.13718858 | F11: =6*'AGCC Summer'!F11+6*'AGCC Winter'!F11 -> 155.273403 | G11: =6*'AGCC Summer'!G11+6*'AGCC Winter'!G11 -> 155.273403 | H11: =6*'AGCC Summer'!H11+6*'AGCC Winter'!H11 -> 54.14756401 | I11: =6*'AGCC Summer'!I11+6*'AGCC Winter'!I11 -> 43.25128079 | K11: =6*'AGCC Summer'!K11+6*'AGCC Winter'!K11 -> 142.4926932 | L11: =6*'AGCC Summer'!L11+6*'AGCC Winter'!L11 -> 142.4926932 | M11: =6*'AGCC Summer'!M11+6*'AGCC Winter'!M11 -> 40.54382725 | N11: =6*'AGCC Summer'!N11+6*'AGCC Winter'!N11 -> 31.66803519
A12: ='ICAP Prices'!A15 -> 2023 | B12: =6*'AGCC Summer'!B12+6*'AGCC Winter'!B12 -> 144.4361662 | C12: =6*'AGCC Summer'!C12+6*'AGCC Winter'!C12 -> 144.4361662 | D12: =6*'AGCC Summer'!D12+6*'AGCC Winter'!D12 -> 53.14965933 | E12: =6*'AGCC Summer'!E12+6*'AGCC Winter'!E12 -> 41.60553231 | F12: =6*'AGCC Summer'!F12+6*'AGCC Winter'!F12 -> 155.6424205 | G12: =6*'AGCC Summer'!G12+6*'AGCC Winter'!G12 -> 155.6424205 | H12: =6*'AGCC Summer'!H12+6*'AGCC Winter'!H12 -> 57.2733398 | I12: =6*'AGCC Summer'!I12+6*'AGCC Winter'!I12 -> 44.83354775 | K12: =6*'AGCC Summer'!K12+6*'AGCC Winter'!K12 -> 142.4838136 | L12: =6*'AGCC Summer'!L12+6*'AGCC Winter'!L12 -> 142.4838136 | M12: =6*'AGCC Summer'!M12+6*'AGCC Winter'!M12 -> 43.02809323 | N12: =6*'AGCC Summer'!N12+6*'AGCC Winter'!N12 -> 32.85390034
A13: ='ICAP Prices'!A16 -> 2024 | B13: =6*'AGCC Summer'!B13+6*'AGCC Winter'!B13 -> 144.6884904 | C13: =6*'AGCC Summer'!C13+6*'AGCC Winter'!C13 -> 144.6884904 | D13: =6*'AGCC Summer'!D13+6*'AGCC Winter'!D13 -> 54.54161605 | E13: =6*'AGCC Summer'!E13+6*'AGCC Winter'!E13 -> 42.709559 | F13: =6*'AGCC Summer'!F13+6*'AGCC Winter'!F13 -> 155.9143215 | G13: =6*'AGCC Summer'!G13+6*'AGCC Winter'!G13 -> 155.9143215 | H13: =6*'AGCC Summer'!H13+6*'AGCC Winter'!H13 -> 58.77329316 | I13: =6*'AGCC Summer'!I13+6*'AGCC Winter'!I13 -> 46.02323168 | K13: =6*'AGCC Summer'!K13+6*'AGCC Winter'!K13 -> 142.4734958 | L13: =6*'AGCC Summer'!L13+6*'AGCC Winter'!L13 -> 142.4734958 | M13: =6*'AGCC Summer'!M13+6*'AGCC Winter'!M13 -> 44.19163933 | N13: =6*'AGCC Summer'!N13+6*'AGCC Winter'!N13 -> 33.7476357
A14: ='ICAP Prices'!A17 -> 2025 | B14: =6*'AGCC Summer'!B14+6*'AGCC Winter'!B14 -> 144.9977379 | C14: =6*'AGCC Summer'!C14+6*'AGCC Winter'!C14 -> 144.9977379 | D14: =6*'AGCC Summer'!D14+6*'AGCC Winter'!D14 -> 57.24903297 | E14: =6*'AGCC Summer'!E14+6*'AGCC Winter'!E14 -> 44.08773272 | F14: =6*'AGCC Summer'!F14+6*'AGCC Winter'!F14 -> 156.2475624 | G14: =6*'AGCC Summer'!G14+6*'AGCC Winter'!G14 -> 156.2475624 | H14: =6*'AGCC Summer'!H14+6*'AGCC Winter'!H14 -> 61.69076829 | I14: =6*'AGCC Summer'!I14+6*'AGCC Winter'!I14 -> 47.50833267 | K14: =6*'AGCC Summer'!K14+6*'AGCC Winter'!K14 -> 142.4567876 | L14: =6*'AGCC Summer'!L14+6*'AGCC Winter'!L14 -> 142.4567876 | M14: =6*'AGCC Summer'!M14+6*'AGCC Winter'!M14 -> 46.52776413 | N14: =6*'AGCC Summer'!N14+6*'AGCC Winter'!N14 -> 34.86582426
A15: ='ICAP Prices'!A18 -> 2026 | B15: =6*'AGCC Summer'!B15+6*'AGCC Winter'!B15 -> 145.2925443 | C15: =6*'AGCC Summer'!C15+6*'AGCC Winter'!C15 -> 145.2925443 | D15: =6*'AGCC Summer'!D15+6*'AGCC Winter'!D15 -> 59.13870135 | E15: =6*'AGCC Summer'!E15+6*'AGCC Winter'!E15 -> 45.43350937 | F15: =6*'AGCC Summer'!F15+6*'AGCC Winter'!F15 -> 156.5652417 | G15: =6*'AGCC Summer'!G15+6*'AGCC Winter'!G15 -> 156.5652417 | H15: =6*'AGCC Summer'!H15+6*'AGCC Winter'!H15 -> 63.72704887 | I15: =6*'AGCC Summer'!I15+6*'AGCC Winter'!I15 -> 48.95852303 | K15: =6*'AGCC Summer'!K15+6*'AGCC Winter'!K15 -> 142.4352707 | L15: =6*'AGCC Summer'!L15+6*'AGCC Winter'!L15 -> 142.4352707 | M15: =6*'AGCC Summer'!M15+6*'AGCC Winter'!M15 -> 48.13225354 | N15: =6*'AGCC Summer'!N15+6*'AGCC Winter'!N15 -> 35.96049824
A16: ='ICAP Prices'!A19 -> 2027 | B16: =6*'AGCC Summer'!B16+6*'AGCC Winter'!B16 -> 145.6712292 | C16: =6*'AGCC Summer'!C16+6*'AGCC Winter'!C16 -> 145.6712292 | D16: =6*'AGCC Summer'!D16+6*'AGCC Winter'!D16 -> 63.01507969 | E16: =6*'AGCC Summer'!E16+6*'AGCC Winter'!E16 -> 47.11061106 | F16: =6*'AGCC Summer'!F16+6*'AGCC Winter'!F16 -> 156.9733073 | G16: =6*'AGCC Summer'!G16+6*'AGCC Winter'!G16 -> 156.9733073 | H16: =6*'AGCC Summer'!H16+6*'AGCC Winter'!H16 -> 67.9041807 | I16: =6*'AGCC Summer'!I16+6*'AGCC Winter'!I16 -> 50.76574468 | K16: =6*'AGCC Summer'!K16+6*'AGCC Winter'!K16 -> 142.4245852 | L16: =6*'AGCC Summer'!L16+6*'AGCC Winter'!L16 -> 142.4245852 | M16: =6*'AGCC Summer'!M16+6*'AGCC Winter'!M16 -> 51.53611528 | N16: =6*'AGCC Summer'!N16+6*'AGCC Winter'!N16 -> 37.32755881
A17: ='ICAP Prices'!A20 -> 2028 | B17: =6*'AGCC Summer'!B17+6*'AGCC Winter'!B17 -> 145.9769539 | C17: =6*'AGCC Summer'!C17+6*'AGCC Winter'!C17 -> 145.9769539 | D17: =6*'AGCC Summer'!D17+6*'AGCC Winter'!D17 -> 65.51483758 | E17: =6*'AGCC Summer'!E17+6*'AGCC Winter'!E17 -> 48.49609196 | F17: =6*'AGCC Summer'!F17+6*'AGCC Winter'!F17 -> 157.302752 | G17: =6*'AGCC Summer'!G17+6*'AGCC Winter'!G17 -> 157.302752 | H17: =6*'AGCC Summer'!H17+6*'AGCC Winter'!H17 -> 70.59788533 | I17: =6*'AGCC Summer'!I17+6*'AGCC Winter'!I17 -> 52.25871978 | K17: =6*'AGCC Summer'!K17+6*'AGCC Winter'!K17 -> 142.4110806 | L17: =6*'AGCC Summer'!L17+6*'AGCC Winter'!L17 -> 142.4110806 | M17: =6*'AGCC Summer'!M17+6*'AGCC Winter'!M17 -> 53.71777901 | N17: =6*'AGCC Summer'!N17+6*'AGCC Winter'!N17 -> 38.46010444
A18: ='ICAP Prices'!A21 -> 2029 | B18: =6*'AGCC Summer'!B18+6*'AGCC Winter'!B18 -> 146.2794081 | C18: =6*'AGCC Summer'!C18+6*'AGCC Winter'!C18 -> 146.2794081 | D18: =6*'AGCC Summer'!D18+6*'AGCC Winter'!D18 -> 67.99706497 | E18: =6*'AGCC Summer'!E18+6*'AGCC Winter'!E18 -> 49.87847009 | F18: =6*'AGCC Summer'!F18+6*'AGCC Winter'!F18 -> 157.6286725 | G18: =6*'AGCC Summer'!G18+6*'AGCC Winter'!G18 -> 157.6286725 | H18: =6*'AGCC Summer'!H18+6*'AGCC Winter'!H18 -> 73.27269933 | I18: =6*'AGCC Summer'!I18+6*'AGCC Winter'!I18 -> 53.74835139 | K18: =6*'AGCC Summer'!K18+6*'AGCC Winter'!K18 -> 142.3976147 | L18: =6*'AGCC Summer'!L18+6*'AGCC Winter'!L18 -> 142.3976147 | M18: =6*'AGCC Summer'!M18+6*'AGCC Winter'!M18 -> 55.89387902 | N18: =6*'AGCC Summer'!N18+6*'AGCC Winter'!N18 -> 39.59283869
A19: ='ICAP Prices'!A22 -> 2030 | B19: =6*'AGCC Summer'!B19+6*'AGCC Winter'!B19 -> 146.8387073 | C19: =6*'AGCC Summer'!C19+6*'AGCC Winter'!C19 -> 146.5785873 | D19: =6*'AGCC Summer'!D19+6*'AGCC Winter'!D19 -> 70.46188537 | E19: =6*'AGCC Summer'!E19+6*'AGCC Winter'!E19 -> 51.25773084 | F19: =6*'AGCC Summer'!F19+6*'AGCC Winter'!F19 -> 158.2313657 | G19: =6*'AGCC Summer'!G19+6*'AGCC Winter'!G19 -> 157.9510639 | H19: =6*'AGCC Summer'!H19+6*'AGCC Winter'!H19 -> 75.92875579 | I19: =6*'AGCC Summer'!I19+6*'AGCC Winter'!I19 -> 55.23462375 | K19: =6*'AGCC Summer'!K19+6*'AGCC Winter'!K19 -> 142.6922721 | L19: =6*'AGCC Summer'!L19+6*'AGCC Winter'!L19 -> 142.3841874 | M19: =6*'AGCC Summer'!M19+6*'AGCC Winter'!M19 -> 58.0644299 | N19: =6*'AGCC Summer'!N19+6*'AGCC Winter'!N19 -> 40.72575092
A20: ='ICAP Prices'!A23 -> 2031 | B20: =6*'AGCC Summer'!B20+6*'AGCC Winter'!B20 -> 149.1564472 | C20: =6*'AGCC Summer'!C20+6*'AGCC Winter'!C20 -> 146.8744869 | D20: =6*'AGCC Summer'!D20+6*'AGCC Winter'!D20 -> 72.90942128 | E20: =6*'AGCC Summer'!E20+6*'AGCC Winter'!E20 -> 52.63385978 | F20: =6*'AGCC Summer'!F20+6*'AGCC Winter'!F20 -> 160.7289302 | G20: =6*'AGCC Summer'!G20+6*'AGCC Winter'!G20 -> 158.2699212 | H20: =6*'AGCC Summer'!H20+6*'AGCC Winter'!H20 -> 78.56618673 | I20: =6*'AGCC Summer'!I20+6*'AGCC Winter'!I20 -> 56.71752132 | K20: =6*'AGCC Summer'!K20+6*'AGCC Winter'!K20 -> 145.0836906 | L20: =6*'AGCC Summer'!L20+6*'AGCC Winter'!L20 -> 142.3707986 | M20: =6*'AGCC Summer'!M20+6*'AGCC Winter'!M20 -> 60.22944617 | N20: =6*'AGCC Summer'!N20+6*'AGCC Winter'!N20 -> 41.85883052
A21: ='ICAP Prices'!A24 -> 2032 | B21: =6*'AGCC Summer'!B21+6*'AGCC Winter'!B21 -> 151.4482269 | C21: =6*'AGCC Summer'!C21+6*'AGCC Winter'!C21 -> 147.1671027 | D21: =6*'AGCC Summer'!D21+6*'AGCC Winter'!D21 -> 75.90094832 | E21: =6*'AGCC Summer'!E21+6*'AGCC Winter'!E21 -> 54.00684264 | F21: =6*'AGCC Summer'!F21+6*'AGCC Winter'!F21 -> 163.1985204 | G21: =6*'AGCC Summer'!G21+6*'AGCC Winter'!G21 -> 158.58524 | H21: =6*'AGCC Summer'!H21+6*'AGCC Winter'!H21 -> 81.789815 | I21: =6*'AGCC Summer'!I21+6*'AGCC Winter'!I21 -> 58.19702871 | K21: =6*'AGCC Summer'!K21+6*'AGCC Winter'!K21 -> 147.4661486 | L21: =6*'AGCC Summer'!L21+6*'AGCC Winter'!L21 -> 142.3574483 | M21: =6*'AGCC Summer'!M21+6*'AGCC Winter'!M21 -> 62.86076176 | N21: =6*'AGCC Summer'!N21+6*'AGCC Winter'!N21 -> 42.99206692
A22: ='ICAP Prices'!A25 -> 2033 | B22: =6*'AGCC Summer'!B22+6*'AGCC Winter'!B22 -> 153.7142399 | C22: =6*'AGCC Summer'!C22+6*'AGCC Winter'!C22 -> 147.4564305 | D22: =6*'AGCC Summer'!D22+6*'AGCC Winter'!D22 -> 79.66808545 | E22: =6*'AGCC Summer'!E22+6*'AGCC Winter'!E22 -> 55.37666532 | F22: =6*'AGCC Summer'!F22+6*'AGCC Winter'!F22 -> 165.6403448 | G22: =6*'AGCC Summer'!G22+6*'AGCC Winter'!G22 -> 158.8970157 | H22: =6*'AGCC Summer'!H22+6*'AGCC Winter'!H22 -> 85.84923001 | I22: =6*'AGCC Summer'!I22+6*'AGCC Winter'!I22 -> 59.67313073 | K22: =6*'AGCC Summer'!K22+6*'AGCC Winter'!K22 -> 149.8396797 | L22: =6*'AGCC Summer'!L22+6*'AGCC Winter'!L22 -> 142.3441362 | M22: =6*'AGCC Summer'!M22+6*'AGCC Winter'!M22 -> 66.15871779 | N22: =6*'AGCC Summer'!N22+6*'AGCC Winter'!N22 -> 44.12544961
A23: ='ICAP Prices'!A26 -> 2034 | B23: =6*'AGCC Summer'!B23+6*'AGCC Winter'!B23 -> 155.9546784 | C23: =6*'AGCC Summer'!C23+6*'AGCC Winter'!C23 -> 147.7424664 | D23: =6*'AGCC Summer'!D23+6*'AGCC Winter'!D23 -> 83.40155864 | E23: =6*'AGCC Summer'!E23+6*'AGCC Winter'!E23 -> 56.7433139 | F23: =6*'AGCC Summer'!F23+6*'AGCC Winter'!F23 -> 168.0546103 | G23: =6*'AGCC Summer'!G23+6*'AGCC Winter'!G23 -> 159.2052439 | H23: =6*'AGCC Summer'!H23+6*'AGCC Winter'!H23 -> 89.87236923 | I23: =6*'AGCC Summer'!I23+6*'AGCC Winter'!I23 -> 61.14581239 | K23: =6*'AGCC Summer'!K23+6*'AGCC Winter'!K23 -> 152.2043173 | L23: =6*'AGCC Summer'!L23+6*'AGCC Winter'!L23 -> 142.3308622 | M23: =6*'AGCC Summer'!M23+6*'AGCC Winter'!M23 -> 69.44507566 | N23: =6*'AGCC Summer'!N23+6*'AGCC Winter'!N23 -> 45.2589681
A24: ='ICAP Prices'!A27 -> 2035 | B24: =6*'AGCC Summer'!B24+6*'AGCC Winter'!B24 -> 158.169733 | C24: =6*'AGCC Summer'!C24+6*'AGCC Winter'!C24 -> 148.0252062 | D24: =6*'AGCC Summer'!D24+6*'AGCC Winter'!D24 -> 87.10164402 | E24: =6*'AGCC Summer'!E24+6*'AGCC Winter'!E24 -> 58.10677462 | F24: =6*'AGCC Summer'!F24+6*'AGCC Winter'!F24 -> 170.4415226 | G24: =6*'AGCC Summer'!G24+6*'AGCC Winter'!G24 -> 159.5099205 | H24: =6*'AGCC Summer'!H24+6*'AGCC Winter'!H24 -> 93.85953019 | I24: =6*'AGCC Summer'!I24+6*'AGCC Winter'!I24 -> 62.61505886 | K24: =6*'AGCC Summer'!K24+6*'AGCC Winter'!K24 -> 154.5600947 | L24: =6*'AGCC Summer'!L24+6*'AGCC Winter'!L24 -> 142.3176264 | M24: =6*'AGCC Summer'!M24+6*'AGCC Winter'!M24 -> 72.71987616 | N24: =6*'AGCC Summer'!N24+6*'AGCC Winter'!N24 -> 46.39261193
A25: ='ICAP Prices'!A28 -> 2036 | B25: =6*'AGCC Summer'!B25+6*'AGCC Winter'!B25 -> 162.2800009 | C25: =6*'AGCC Summer'!C25+6*'AGCC Winter'!C25 -> 148.3046464 | D25: =6*'AGCC Summer'!D25+6*'AGCC Winter'!D25 -> 90.76861543 | E25: =6*'AGCC Summer'!E25+6*'AGCC Winter'!E25 -> 59.4670339 | F25: =6*'AGCC Summer'!F25+6*'AGCC Winter'!F25 -> 174.8706906 | G25: =6*'AGCC Summer'!G25+6*'AGCC Winter'!G25 -> 159.8110414 | H25: =6*'AGCC Summer'!H25+6*'AGCC Winter'!H25 -> 97.81100801 | I25: =6*'AGCC Summer'!I25+6*'AGCC Winter'!I25 -> 64.0808555 | K25: =6*'AGCC Summer'!K25+6*'AGCC Winter'!K25 -> 159.0675202 | L25: =6*'AGCC Summer'!L25+6*'AGCC Winter'!L25 -> 142.3044284 | M25: =6*'AGCC Summer'!M25+6*'AGCC Winter'!M25 -> 75.98315993 | N25: =6*'AGCC Summer'!N25+6*'AGCC Winter'!N25 -> 47.52637069
A26: ='ICAP Prices'!A29 -> 2037 | B26: =6*'AGCC Summer'!B26+6*'AGCC Winter'!B26 -> 166.6913276 | C26: =6*'AGCC Summer'!C26+6*'AGCC Winter'!C26 -> 148.5807832 | D26: =6*'AGCC Summer'!D26+6*'AGCC Winter'!D26 -> 94.40274448 | E26: =6*'AGCC Summer'!E26+6*'AGCC Winter'!E26 -> 60.82407833 | F26: =6*'AGCC Summer'!F26+6*'AGCC Winter'!F26 -> 179.6242754 | G26: =6*'AGCC Summer'!G26+6*'AGCC Winter'!G26 -> 160.1086026 | H26: =6*'AGCC Summer'!H26+6*'AGCC Winter'!H26 -> 101.7270953 | I26: =6*'AGCC Summer'!I26+6*'AGCC Winter'!I26 -> 65.54318785 | K26: =6*'AGCC Summer'!K26+6*'AGCC Winter'!K26 -> 163.9505861 | L26: =6*'AGCC Summer'!L26+6*'AGCC Winter'!L26 -> 142.2912684 | M26: =6*'AGCC Summer'!M26+6*'AGCC Winter'!M26 -> 79.23496747 | N26: =6*'AGCC Summer'!N26+6*'AGCC Winter'!N26 -> 48.66023403
A28: *Based on 2017 Gold Book
A29: **AGCC at Distribution Level = AGCC at Transmission Level / (1-Distribution Losses)
B30: Assumed Distribution Losses: | E30: 0.072
A32: NYC = New York City (Load Zone J)
A33: LHV = Lower Hudson Valley (Load Zones GHI)
A34: LI = Long Island (Load Zone K)
A35: ROS = Rest of State (Upstate Load Zones A-F)
A36: NYCA=NY Control Area (Statewide)
A38: 2017 ICAP Demand Curve Reference Prices:
B39: NYC | C39: LHV | D39: LI | E39: NYCA
B40: ='DC Model'!E12 -> 18.61 | C40: ='DC Model'!H12 -> 14.84 | D40: ='DC Model'!K12 -> 12.72 | E40: ='DC Model'!N12 -> 9.08
A42: 2017 Minimum Locational ICAP Requirements (LCRs):
B43: NYC | C43: LHV | D43: LI | E43: NYCA
B44: ='DC Model'!D6 -> 0.815 | C44: ='DC Model'!G6 -> 0.915 | D44: ='DC Model'!J6 -> 1.035 | E44: ='DC Model'!M6 -> 1.18

Sheet AGCC Summer
A1: Summer Month Avoided Generation Capacity Costs (AGCC) due to 1 kW reduction in Peak Load*
A2: All Prices in 2017 Dollars
A4: Year | B4: Avoided GCC at Transmission Level | F4: Avoided GCC at Distribution Level | K4: Generator ICAP Prices by Region | O4: Capacity Obligation at Forecasted Price
B5: NYC | C5: LHV | D5: LI | E5: ROS | F5: NYC | G5: LHV | H5: LI | I5: ROS | K5: NYC | L5: LHV | M5: LI | N5: ROS | O5: NYC | P5: LHV | Q5: LI | R5: NYCA
A6: ='ICAP Prices'!A9 -> 2017 | B6: =O6*K6+(P6-O6)*L6+(R6-P6)*N6 -> 10.40646377 | C6: =L6*P6+N6*(R6-P6) -> 9.970428092 | D6: =M6*Q6+(R6-Q6)*N6 -> 8.70358158 | E6: =N6*R6 -> 3.076427211 | F6: =B6/(1-$E$30) -> 11.21386182 | G6: =C6/(1-$E$30) -> 10.74399579 | H6: =D6/(1-$E$30) -> 9.378859462 | I6: =E6/(1-$E$30) -> 3.315115529 | K6: ='ICAP Prices'!$C9 -> 10.04140961 | L6: ='ICAP Prices'!$F9 -> 9.547343372 | M6: ='ICAP Prices'!$I9 -> 7.455426464 | N6: ='ICAP Prices'!$L9 -> 2.395518792 | O6: =B$44*(1+0.18*(1-K6/B$40)) -> 0.8825449871 | P6: =C$44*(1+0.15*(1-L6/C$40)) -> 0.9639499409 | Q6: =D$44*(1+0.18*(1-M6/D$40)) -> 1.112106136 | R6: =E$44*(1+0.12*(1-N6/E$40)) -> 1.28424257
A7: ='ICAP Prices'!A10 -> 2018 | B7: 10.67877806 | C7: 7.439735664 | D7: 8.773248517 | E7: 3.510306239 | F7: 11.50730394 | G7: 8.016956534 | H7: 9.453931592 | I7: 3.782657585 | K7: ='ICAP Prices'!$C10 -> 10.39525147 | L7: ='ICAP Prices'!$F10 -> 6.713499378 | M7: ='ICAP Prices'!$I10 -> 7.478889693 | N7: ='ICAP Prices'!$L10 -> 2.745016825 | O7: 0.8797557017 | P7: 0.9901591786 | Q7: 1.111762488 | R7: 1.278792249
A8: ='ICAP Prices'!A11 -> 2019 | B8: 11.07337076 | C8: 7.605446707 | D8: 7.591679051 | E8: 3.356547301 | F8: 11.93251159 | G8: 8.195524469 | H8: 8.180688632 | I8: 3.616969074 | K8: ='ICAP Prices'!$C11 -> 10.87932917 | L8: ='ICAP Prices'!$F11 -> 6.920239618 | M8: ='ICAP Prices'!$I11 -> 6.375621181 | N8: ='ICAP Prices'!$L11 -> 2.620809482 | O8: 0.8759397857 | P8: 0.98824711 | Q8: 1.127921209 | R8: 1.280729227
A9: ='ICAP Prices'!A12 -> 2020 | B9: 12.38107976 | C9: 12.38107976 | D9: 6.790688228 | E9: 4.630569788 | F9: 13.34168077 | G9: 13.34168077 | H9: 7.31755197 | I9: 4.989838134 | K9: ='ICAP Prices'!$C12 -> 11.88699929 | L9: ='ICAP Prices'!$F12 -> 11.88699929 | M9: ='ICAP Prices'!$I12 -> 5.556988112 | N9: ='ICAP Prices'!$L12 -> 3.661999589 | O9: 0.8679964645 | P9: 0.9423112768 | Q9: 1.139911094 | R9: 1.264492165
A10: ='ICAP Prices'!A13 -> 2021 | B10: 14.97729689 | C10: 14.97729689 | D10: 6.782374836 | E10: 5.129816349 | F10: 16.13932855 | G10: 16.13932855 | H10: 7.308593574 | I10: 5.527819341 | K10: ='ICAP Prices'!$C13 -> 14.84 | L10: ='ICAP Prices'!$F13 -> 14.84 | M10: ='ICAP Prices'!$I13 -> 5.526891562 | N10: ='ICAP Prices'!$L13 -> 4.077726181 | O10: 0.8447183772 | P10: 0.915 | Q10: 1.140351895 | R10: 1.258009028
A11: ='ICAP Prices'!A14 -> 2022 | B11: 14.98985705 | C11: 14.98985705 | D11: 6.868902308 | E11: 5.183610504 | F11: 16.1528632 | G11: 16.1528632 | H11: 7.401834384 | I11: 5.585787181 | K11: ='ICAP Prices'!$C14 -> 14.84 | L11: ='ICAP Prices'!$F14 -> 14.84 | M11: ='ICAP Prices'!$I14 -> 5.602089335 | N11: ='ICAP Prices'!$L14 -> 4.122790658 | O11: 0.8447183772 | P11: 0.915 | Q11: 1.139250531 | R11: 1.25730626
A12: ='ICAP Prices'!A15 -> 2023 | B12: 15.01691147 | C12: 15.01691147 | D12: 7.22421953 | E12: 5.300198359 | F12: 16.18201667 | G12: 16.18201667 | H12: 7.784719321 | I12: 5.711420646 | K12: ='ICAP Prices'!$C15 -> 14.84 | L12: ='ICAP Prices'!$F15 -> 14.84 | M12: ='ICAP Prices'!$I15 -> 5.916340225 | N12: ='ICAP Prices'!$L15 -> 4.220641409 | O12: 0.8447183772 | P12: 0.915 | Q12: 1.134647942 | R12: 1.255780306
A13: ='ICAP Prices'!A16 -> 2024 | B13: 15.03719478 | C13: 15.03719478 | D13: 7.360273736 | E13: 5.388264227 | F13: 16.20387368 | G13: 16.20387368 | H13: 7.931329457 | I13: 5.80631921 | K13: ='ICAP Prices'!$C16 -> 14.84 | L13: ='ICAP Prices'!$F16 -> 14.84 | M13: ='ICAP Prices'!$I16 -> 6.03538798 | N13: ='ICAP Prices'!$L16 -> 4.294720708 | O13: 0.8447183772 | P13: 0.915 | Q13: 1.132904341 | R13: 1.25462506
A14: ='ICAP Prices'!A17 -> 2025 | B14: 15.06242592 | C14: 15.06242592 | D14: 7.692172818 | E14: 5.498622775 | F14: 16.23106241 | G14: 16.23106241 | H14: 8.28897933 | I14: 5.92524006 | K14: ='ICAP Prices'!$C17 -> 14.84 | L14: ='ICAP Prices'!$F17 -> 14.84 | M14: ='ICAP Prices'!$I17 -> 6.331412774 | N14: ='ICAP Prices'!$L17 -> 4.387756129 | O14: 0.8447183772 | P14: 0.915 | Q14: 1.128568695 | R14: 1.2531742
A15: ='ICAP Prices'!A18 -> 2026 | B15: 15.08699349 | C15: 15.08699349 | D15: 7.891166921 | E15: 5.606968257 | F15: 16.25753609 | G15: 16.25753609 | H15: 8.50341263 | I15: 6.041991657 | K15: ='ICAP Prices'!$C18 -> 14.84 | L15: ='ICAP Prices'!$F18 -> 14.84 | M15: ='ICAP Prices'!$I18 -> 6.507942565 | N15: ='ICAP Prices'!$L18 -> 4.479316682 | O15: 0.8447183772 | P15: 0.915 | Q15: 1.1259832 | R15: 1.251746339
A16: ='ICAP Prices'!A19 -> 2027 | B16: 15.11691288 | C16: 15.11691288 | D16: 8.390887193 | E16: 5.740142422 | F16: 16.28977681 | G16: 16.28977681 | H16: 9.041904303 | I16: 6.185498299 | K16: ='ICAP Prices'!$C19 -> 14.84 | L16: ='ICAP Prices'!$F19 -> 14.84 | M16: ='ICAP Prices'!$I19 -> 6.960256182 | N16: ='ICAP Prices'!$L19 -> 4.592163437 | O16: 0.8447183772 | P16: 0.915 | Q16: 1.119358512 | R16: 1.249986526
A17: ='ICAP Prices'!A20 -> 2028 | B17: 15.14151164 | C17: 15.14151164 | D17: 8.68713675 | E17: 5.850679146 | F17: 16.3162841 | G17: 16.3162841 | H17: 9.36113874 | I17: 6.304611149 | K17: ='ICAP Prices'!$C20 -> 14.84 | L17: ='ICAP Prices'!$F20 -> 14.84 | M17: ='ICAP Prices'!$I20 -> 7.229030464 | N17: ='ICAP Prices'!$L20 -> 4.686084702 | O17: 0.8447183772 | P17: 0.915 | Q17: 1.115421983 | R17: 1.248521851
A18: ='ICAP Prices'!A21 -> 2029 | B18: 15.16583876 | C18: 15.16583876 | D18: 8.980722391 | E18: 5.960956576 | F18: 16.34249866 | G18: 16.34249866 | H18: 9.677502576 | I18: 6.423444586 | K18: ='ICAP Prices'!$C21 -> 14.84 | L18: ='ICAP Prices'!$F21 -> 14.84 | M18: ='ICAP Prices'!$I21 -> 7.496859528 | N18: ='ICAP Prices'!$L21 -> 4.780019472 | O18: 0.8447183772 | P18: 0.915 | Q18: 1.111499298 | R18: 1.247056965
A19: ='ICAP Prices'!A22 -> 2030 | B19: 15.23324723 | C19: 15.18989388 | D19: 9.271665987 | E19: 6.070973565 | F19: 16.4151371 | G19: 16.36842013 | H19: 9.991019382 | I19: 6.541997376 | K19: ='ICAP Prices'!$C22 -> 14.89134744 | L19: ='ICAP Prices'!$F22 -> 14.84 | M19: ='ICAP Prices'!$I22 -> 7.763746698 | N19: ='ICAP Prices'!$L22 -> 4.873966867 | O19: 0.8443136126 | P19: 0.915 | Q19: 1.107590408 | R19: 1.245591882
A20: ='ICAP Prices'!A23 -> 2031 | B20: 15.5940034 | C20: 15.21367668 | D20: 9.55998923 | E20: 6.18072898 | F20: 16.80388298 | G20: 16.39404815 | H20: 10.30171253 | I20: 6.660268297 | K20: ='ICAP Prices'!$C23 -> 15.29214866 | L20: ='ICAP Prices'!$F23 -> 14.84 | M20: ='ICAP Prices'!$I23 -> 8.029695287 | N20: ='ICAP Prices'!$L23 -> 4.967926012 | O20: 0.8411541532 | P20: 0.915 | Q20: 1.103695265 | R20: 1.244126616
A21: ='ICAP Prices'!A24 -> 2032 | B21: 15.95070753 | C21: 15.23718683 | D21: 9.845713634 | E21: 6.290221702 | F21: 17.18826243 | G21: 16.41938236 | H21: 10.60960521 | I21: 6.778256145 | K21: ='ICAP Prices'!$C24 -> 15.69145006 | L21: ='ICAP Prices'!$F24 -> 14.84 | M21: ='ICAP Prices'!$I24 -> 8.294708595 | N21: ='ICAP Prices'!$L24 -> 5.061896034 | O21: 0.8380065167 | P21: 0.915 | Q21: 1.09981382 | R21: 1.242661181
A22: ='ICAP Prices'!A25 -> 2033 | B22: 16.30339226 | C22: 15.26042403 | D22: 10.12886053 | E22: 6.399450628 | F22: 17.56831063 | G22: 16.44442245 | H22: 10.9147204 | I22: 6.895959728 | K22: ='ICAP Prices'!$C25 -> 16.08925726 | L22: ='ICAP Prices'!$F25 -> 14.84 | M22: ='ICAP Prices'!$I25 -> 8.558789912 | N22: ='ICAP Prices'!$L25 -> 5.155876063 | O22: 0.8348706588 | P22: 0.915 | Q22: 1.095946025 | R22: 1.241195589
A23: ='ICAP Prices'!A26 -> 2034 | B23: 16.65208998 | C23: 15.28338798 | D23: 10.40945109 | E23: 6.508414665 | F23: 17.94406248 | G23: 16.46916808 | H23: 11.21708091 | I23: 7.013377872 | K23: ='ICAP Prices'!$C26 -> 16.48557584 | L23: ='ICAP Prices'!$F26 -> 14.84 | M23: ='ICAP Prices'!$I26 -> 8.821942515 | N23: ='ICAP Prices'!$L26 -> 5.249865234 | O23: 0.8317465354 | P23: 0.915 | Q23: 1.092091833 | R23: 1.239729855
A24: ='ICAP Prices'!A27 -> 2035 | B24: 16.99683284 | C24: 15.30607838 | D24: 10.68750628 | E24: 6.617112739 | F24: 18.31555263 | G24: 16.49361895 | H24: 11.51670936 | I24: 7.130509417 | K24: ='ICAP Prices'!$C27 -> 16.88041139 | L24: ='ICAP Prices'!$F27 -> 14.84 | M24: ='ICAP Prices'!$I27 -> 9.08416967 | N24: ='ICAP Prices'!$L27 -> 5.343862685 | O24: 0.8286341026 | P24: 0.915 | Q24: 1.088251194 | R24: 1.238263992
A25: ='ICAP Prices'!A28 -> 2036 | B25: 17.33765273 | C25: 15.32849497 | D25: 10.96304693 | E25: 6.725543784 | F25: 18.68281544 | G25: 16.51777475 | H25: 11.81362815 | I25: 7.247353216 | K25: ='ICAP Prices'!$C28 -> 17.27376944 | L25: ='ICAP Prices'!$F28 -> 14.84 | M25: ='ICAP Prices'!$I28 -> 9.345474632 | N25: ='ICAP Prices'!$L28 -> 5.437867555 | O25: 0.8255333167 | P25: 0.915 | Q25: 1.084424063 | R25: 1.236798013
A26: ='ICAP Prices'!A29 -> 2037 | B26: 17.67458129 | C26: 15.35063748 | D26: 11.23609366 | E26: 6.833706754 | F26: 19.04588501 | G26: 16.54163521 | H26: 12.10785955 | I26: 7.36390814 | K26: ='ICAP Prices'!$C29 -> 17.66565552 | L26: ='ICAP Prices'!$F29 -> 14.84 | M26: ='ICAP Prices'!$I29 -> 9.605860643 | N26: ='ICAP Prices'!$L29 -> 5.531878988 | O26: 0.822444134 | P26: 0.915 | Q26: 1.08061039 | R26: 1.235331931
A28: *Based on 2017 Gold Book
A29: **AGCC at Distribution Level = AGCC at Transmission Level / (1-Distribution Losses)
B30: Assumed Distribution Losses: | E30: 0.072
A32: NYC = New York City Load Zone J)
A33: LHV = Lower Hudson Valley (Load Zones GHI)
A34: LI = Long Island (Load Zone K)
A35: ROS = Rest of State (Upstate Load Zones A-F)
A36: NYCA=NY Control Area (Statewide)
A38: 2017 ICAP Demand Curve Reference Prices:
B39: NYC | C39: LHV | D39: LI | E39: NYCA
B40: ='DC Model'!E12 -> 18.61 | C40: ='DC Model'!H12 -> 14.84 | D40: ='DC Model'!K12 -> 12.72 | E40: ='DC Model'!N12 -> 9.08
A42: 2017 Minimum Locational ICAP Requirements (LCRs):
B43: NYC | C43: LHV | D43: LI | E43: NYCA
B44: ='DC Model'!D6 -> 0.815 | C44: ='DC Model'!G6 -> 0.915 | D44: ='DC Model'!J6 -> 1.035 | E44: ='DC Model'!M6 -> 1.18

Sheet AGCC Winter
A1: Winter Month Avoided Generation Capacity Costs (AGCC) due to 1 kW reduction in Peak Load*
A2: All Prices in 2017 Dollars
A4: Year | B4: Avoided GCC at Transmission Level | F4: Avoided GCC at Distribution Level | K4: Generator ICAP Prices by Region | O4: Capacity Obligation at Forecasted Price
B5: NYC | C5: LHV | D5: LI | E5: ROS | F5: NYC | G5: LHV | H5: LI | I5: ROS | K5: NYC | L5: LHV | M5: LI | N5: ROS | O5: NYC | P5: LHV | Q5: LI | R5: NYCA
A6: ='ICAP Prices'!A9 -> 2017 | B6: =O6*K6+(P6-O6)*L6+(R6-P6)*N6 -> 3.922002425 | C6: =L6*P6+N6*(R6-P6) -> 3.922002425 | D6: =M6*Q6+(R6-Q6)*N6 -> 1.660558959 | E6: =N6*R6 -> 0 | F6: =B6/(1-$E$30) -> 4.226295716 | G6: =C6/(1-$E$30) -> 4.226295716 | H6: =D6/(1-$E$30) -> 1.78939543 | I6: =E6/(1-$E$30) -> 0 | K6: ='ICAP Prices'!$D9 -> 3.858081949 | L6: ='ICAP Prices'!$G9 -> 3.858081949 | M6: ='ICAP Prices'!$J9 -> 1.382589035 | N6: ='ICAP Prices'!$M9 -> 0 | O6: =B$44*(1+0.18*(1-K6/B$40)) -> 0.9312872852 | P6: =C$44*(1+0.15*(1-L6/C$40)) -> 1.016567942 | Q6: =D$44*(1+0.18*(1-M6/D$40)) -> 1.201050288 | R6: =E$44*(1+0.12*(1-N6/E$40)) -> 1.3216
A7: ='ICAP Prices'!A10 -> 2018 | B7: 1.823007312 | C7: 0.9565224298 | D7: 1.562768641 | E7: 0 | F7: 1.964447534 | G7: 1.030735377 | H7: 1.684017932 | I7: 0 | K7: ='ICAP Prices'!$D10 -> 1.831129532 | L7: ='ICAP Prices'!$G10 -> 0.9164071921 | M7: ='ICAP Prices'!$J10 -> 1.29985697 | N7: ='ICAP Prices'!$M10 -> 0 | O7: 0.9472654647 | P7: 1.043774469 | Q7: 1.202262001 | R7: 1.3216
A8: ='ICAP Prices'!A11 -> 2019 | B8: 2.330135321 | C8: 1.177597233 | D8: 0.1302438696 | E8: 0 | F8: 2.510921682 | G8: 1.268962535 | H8: 0.1403489974 | I8: 0 | K8: ='ICAP Prices'!$D11 -> 2.352353866 | L8: ='ICAP Prices'!$G11 -> 1.130353264 | M8: ='ICAP Prices'!$J11 -> 0.1067803705 | N8: ='ICAP Prices'!$M11 -> 0 | O8: 0.9431567269 | P8: 1.041795756 | Q8: 1.219736071 | R8: 1.3216
A9: ='ICAP Prices'!A12 -> 2020 | B9: 6.429811337 | C9: 6.429811337 | D9: 1.007127885 | E9: 1.007127885 | F9: 6.928676009 | G9: 6.928676009 | H9: 1.085267117 | I9: 1.085267117 | K9: ='ICAP Prices'!$D12 -> 6.220504754 | L9: ='ICAP Prices'!$G12 -> 6.220504754 | M9: ='ICAP Prices'!$J12 -> 0.76903051 | N9: ='ICAP Prices'!$M12 -> 0.76903051 | O9: 0.9126646401 | P9: 0.9947187145 | Q9: 1.210036605 | R9: 1.309607189
A10: ='ICAP Prices'!A13 -> 2021 | B10: 9.011535211 | C10: 9.011535211 | D10: 1.446463191 | E10: 1.446463191 | F10: 9.710706047 | G10: 9.710706047 | H10: 1.558688783 | I10: 1.558688783 | K10: ='ICAP Prices'!$D13 -> 8.909227246 | L10: ='ICAP Prices'!$G13 -> 8.909227246 | M10: ='ICAP Prices'!$J13 -> 1.108991012 | N10: ='ICAP Prices'!$M13 -> 1.108991012 | O10: 0.8914698207 | P10: 0.969851655 | Q10: 1.205057467 | R10: 1.304305603
A11: ='ICAP Prices'!A14 -> 2022 | B11: 9.025762614 | C11: 9.025762614 | D11: 1.505920925 | E11: 1.505920925 | F11: 9.7260373 | G11: 9.7260373 | H11: 1.622759617 | I11: 1.622759617 | K11: ='ICAP Prices'!$D14 -> 8.908782193 | L11: ='ICAP Prices'!$G14 -> 8.908782193 | M11: ='ICAP Prices'!$J14 -> 1.155215206 | N11: ='ICAP Prices'!$M14 -> 1.155215206 | O11: 0.891473329 | P11: 0.9698557712 | Q11: 1.204380457 | R11: 1.30358475
A12: ='ICAP Prices'!A15 -> 2023 | B12: 9.055782896 | C12: 9.055782896 | D12: 1.634057025 | E12: 1.634057025 | F12: 9.758386741 | G12: 9.758386741 | H12: 1.760837312 | I12: 1.760837312 | K12: ='ICAP Prices'!$D15 -> 8.907302268 | L12: ='ICAP Prices'!$G15 -> 8.907302268 | M12: ='ICAP Prices'!$J15 -> 1.255008647 | N12: ='ICAP Prices'!$M15 -> 1.255008647 | O12: 0.891484995 | P12: 0.9698694585 | Q12: 1.202918859 | R12: 1.3020285
A13: ='ICAP Prices'!A16 -> 2024 | B13: 9.077553614 | C13: 9.077553614 | D13: 1.729995606 | E13: 1.729995606 | F13: 9.781846567 | G13: 9.781846567 | H13: 1.864219403 | I13: 1.864219403 | K13: ='ICAP Prices'!$D16 -> 8.905582627 | L13: ='ICAP Prices'!$G16 -> 8.905582627 | M13: ='ICAP Prices'!$J16 -> 1.329885241 | N13: ='ICAP Prices'!$M16 -> 1.329885241 | O13: 0.8914985507 | P13: 0.9698853628 | Q13: 1.2018222 | R13: 1.30086082
A14: ='ICAP Prices'!A17 -> 2025 | B14: 9.103863732 | C14: 9.103863732 | D14: 1.849332677 | E14: 1.849332677 | F14: 9.810197987 | G14: 9.810197987 | H14: 1.992815385 | I14: 1.992815385 | K14: ='ICAP Prices'!$D17 -> 8.902797941 | L14: ='ICAP Prices'!$G17 -> 8.902797941 | M14: ='ICAP Prices'!$J17 -> 1.423214581 | N14: ='ICAP Prices'!$M17 -> 1.423214581 | O14: 0.891520502 | P14: 0.9699111174 | Q14: 1.200455277 | R14: 1.299405376
A15: ='ICAP Prices'!A18 -> 2026 | B15: 9.128430563 | C15: 9.128430563 | D15: 1.965283305 | E15: 1.965283305 | F15: 9.836670865 | G15: 9.836670865 | H15: 2.117762182 | I15: 2.117762182 | K15: ='ICAP Prices'!$D18 -> 8.899211777 | L15: ='ICAP Prices'!$G18 -> 8.899211777 | M15: ='ICAP Prices'!$J18 -> 1.514099692 | N15: ='ICAP Prices'!$M18 -> 1.514099692 | O15: 0.8915487712 | P15: 0.9699442846 | Q15: 1.199124153 | R15: 1.297988049
A16: ='ICAP Prices'!A19 -> 2027 | B16: 9.161625319 | C16: 9.161625319 | D16: 2.111626089 | E16: 2.111626089 | F16: 9.872441076 | G16: 9.872441076 | H16: 2.275459147 | I16: 2.275459147 | K16: ='ICAP Prices'!$D19 -> 8.897430872 | L16: ='ICAP Prices'!$G19 -> 8.897430872 | M16: ='ICAP Prices'!$J19 -> 1.629096365 | N16: ='ICAP Prices'!$M19 -> 1.629096365 | O16: 0.8915628098 | P16: 0.9699607556 | Q16: 1.197439886 | R16: 1.296194709
A17: ='ICAP Prices'!A20 -> 2028 | B17: 9.187980671 | C17: 9.187980671 | D17: 2.232002847 | E17: 2.232002847 | F17: 9.900841241 | G17: 9.900841241 | H17: 2.405175481 | I17: 2.405175481 | K17: ='ICAP Prices'!$D20 -> 8.895180101 | L17: ='ICAP Prices'!$G20 -> 8.895180101 | M17: ='ICAP Prices'!$J20 -> 1.723932704 | N17: ='ICAP Prices'!$M20 -> 1.723932704 | O17: 0.8915805523 | P17: 0.9699815722 | Q17: 1.196050891 | R17: 1.294715763
A18: ='ICAP Prices'!A21 -> 2029 | B18: 9.214062593 | C18: 9.214062593 | D18: 2.352121772 | E18: 2.352121772 | F18: 9.928946759 | G18: 9.928946759 | H18: 2.534613978 | I18: 2.534613978 | K18: ='ICAP Prices'!$D21 -> 8.892935785 | L18: ='ICAP Prices'!$G21 -> 8.892935785 | M18: ='ICAP Prices'!$J21 -> 1.818786976 | N18: ='ICAP Prices'!$M21 -> 1.818786976 | O18: 0.891598244 | P18: 0.9700023291 | Q18: 1.194661634 | R18: 1.293236538
A19: ='ICAP Prices'!A22 -> 2030 | B19: 9.239870662 | C19: 9.239870662 | D19: 2.471981575 | E19: 2.471981575 | F19: 9.956757179 | G19: 9.956757179 | H19: 2.663773249 | I19: 2.663773249 | K19: ='ICAP Prices'!$D22 -> 8.890697904 | L19: ='ICAP Prices'!$G22 -> 8.890697904 | M19: ='ICAP Prices'!$J22 -> 1.913658285 | N19: ='ICAP Prices'!$M22 -> 1.913658285 | O19: 0.8916158849 | P19: 0.9700230265 | Q19: 1.193272127 | R19: 1.291757047
A20: ='ICAP Prices'!A23 -> 2031 | B20: 9.265404471 | C20: 9.265404471 | D20: 2.591580984 | E20: 2.591580984 | F20: 9.984272059 | G20: 9.984272059 | H20: 2.792651922 | I20: 2.792651922 | K20: ='ICAP Prices'!$D23 -> 8.888466441 | L20: ='ICAP Prices'!$G23 -> 8.888466441 | M20: ='ICAP Prices'!$J23 -> 2.008545741 | N20: ='ICAP Prices'!$M23 -> 2.008545741 | O20: 0.8916334752 | P20: 0.9700436645 | Q20: 1.191882384 | R20: 1.290277304
A21: ='ICAP Prices'!A24 -> 2032 | B21: 9.290663622 | C21: 9.290663622 | D21: 2.804444419 | E21: 2.710918738 | F21: 10.01149097 | G21: 10.01149097 | H21: 3.022030624 | I21: 2.92124864 | K21: ='ICAP Prices'!$D24 -> 8.886241376 | L21: ='ICAP Prices'!$G24 -> 8.886241376 | M21: ='ICAP Prices'!$J24 -> 2.182085031 | N21: ='ICAP Prices'!$M24 -> 2.103448454 | O21: 0.8916510151 | P21: 0.9700642433 | Q21: 1.189340689 | R21: 1.288797324
A22: ='ICAP Prices'!A25 -> 2033 | B22: 9.315647728 | C22: 9.315647728 | D22: 3.149153708 | E22: 2.829993592 | F22: 10.0384135 | G22: 10.0384135 | H22: 3.393484599 | I22: 3.049562061 | K22: ='ICAP Prices'!$D25 -> 8.884022692 | L22: ='ICAP Prices'!$G25 -> 8.884022692 | M22: ='ICAP Prices'!$J25 -> 2.467663053 | N22: ='ICAP Prices'!$M25 -> 2.198365539 | O22: 0.8916685046 | P22: 0.9700847632 | Q22: 1.185158048 | R22: 1.287317119
A23: ='ICAP Prices'!A26 -> 2034 | B23: 9.340356416 | C23: 9.340356416 | D23: 3.490808686 | E23: 2.948804318 | F23: 10.06503924 | G23: 10.06503924 | H23: 3.761647291 | I23: 3.177590859 | K23: ='ICAP Prices'!$D26 -> 8.88181037 | L23: ='ICAP Prices'!$G26 -> 8.88181037 | M23: ='ICAP Prices'!$J26 -> 2.752236762 | N23: ='ICAP Prices'!$M26 -> 2.293296115 | O23: 0.891685944 | P23: 0.9701052242 | Q23: 1.180990117 | R23: 1.285836704
A24: ='ICAP Prices'!A27 -> 2035 | B24: 9.364789322 | C24: 9.364789322 | D24: 3.829434388 | E24: 3.067349698 | F24: 10.0913678 | G24: 10.0913678 | H24: 4.126545677 | I24: 3.305333726 | K24: ='ICAP Prices'!$D27 -> 8.879604393 | L24: ='ICAP Prices'!$G27 -> 8.879604393 | M24: ='ICAP Prices'!$J27 -> 3.03580969 | N24: ='ICAP Prices'!$M27 -> 2.388239303 | O24: 0.8917033335 | P24: 0.9701256265 | Q24: 1.176836844 | R24: 1.284356092
A25: ='ICAP Prices'!A28 -> 2036 | B25: 9.709014089 | C25: 9.388946095 | D25: 4.165055647 | E25: 3.185628532 | F25: 10.46229967 | G25: 10.11739881 | H25: 4.488206516 | I25: 3.432789367 | K25: ='ICAP Prices'!$D28 -> 9.237483936 | L25: ='ICAP Prices'!$G28 -> 8.877404741 | M25: ='ICAP Prices'!$J28 -> 3.318385357 | N25: ='ICAP Prices'!$M28 -> 2.483194227 | O25: 0.8888822196 | P25: 0.9701459703 | Q25: 1.172698177 | R25: 1.282875297
A26: ='ICAP Prices'!A29 -> 2037 | B26: 10.10730664 | C26: 9.412826395 | D26: 4.497697088 | E26: 3.303639634 | F26: 10.89149423 | G26: 10.14313189 | H26: 4.846656345 | I26: 3.559956502 | K26: ='ICAP Prices'!$D29 -> 9.659442164 | L26: ='ICAP Prices'!$G29 -> 8.875211397 | M26: ='ICAP Prices'!$J29 -> 3.599967269 | N26: ='ICAP Prices'!$M29 -> 2.578160016 | O26: 0.8855559825 | P26: 0.9701662558 | Q26: 1.168574064 | R26: 1.281394333
A28: *Based on 2017 Gold Book
A29: **AGCC at Distribution Level = AGCC at Transmission Level / (1-Distribution Losses)
B30: Assumed Distribution Losses: | E30: 0.072
A32: NYC = New York City Load Zone J)
A33: LHV = Lower Hudson Valley (Load Zones GHI)
A34: LI = Long Island (Load Zone K)
A35: ROS = Rest of State (Upstate Load Zones A-F)
A36: NYCA=NY Control Area (Statewide)
A38: 2017 ICAP Demand Curve Reference Prices:
B39: NYC | C39: LHV | D39: LI | E39: NYCA (ROS)
B40: ='DC Model'!E12 -> 18.61 | C40: ='DC Model'!H12 -> 14.84 | D40: ='DC Model'!K12 -> 12.72 | E40: ='DC Model'!N12 -> 9.08
A42: 2017 Minimum Locational ICAP Requirements (LCRs):
B43: NYC | C43: LHV | D43: LI | E43: NYCA
B44: ='DC Model'!D6 -> 0.815 | C44: ='DC Model'!G6 -> 0.915 | D44: ='DC Model'!J6 -> 1.035 | E44: ='DC Model'!M6 -> 1.18

Sheet ICAP Prices
A1: ICAP Monthly Price Forecasts, based on 2017 Gold Book
A2: (All Prices in 2017 Dollars)
B4: NYC (J) | E4: LHV (G-J) | H4: LI (K) | K4: ROS (NYCA)
B5: Average | C5: Summer | D5: Winter | E5: Average | F5: Summer | G5: Winter | H5: Average | I5: Summer | J5: Winter | K5: Average | L5: Summer | M5: Winter
A6: Net CONE | B6: ='DC Model'!D12 -> 14.62952778 | C6: ='DC Model'!E12 -> 18.61 | D6: ='DC Model'!F12 -> 10.64905556 | E6: ='DC Model'!G12 -> 12.1688 | F6: ='DC Model'!H12 -> 14.84 | G6: ='DC Model'!I12 -> 9.4976 | H6: ='DC Model'!J12 -> 10.07 | I6: ='DC Model'!K12 -> 12.72 | J6: ='DC Model'!L12 -> 7.42 | K6: ='DC Model'!M12 -> 7.680166667 | L6: ='DC Model'!N12 -> 9.08 | M6: ='DC Model'!O12 -> 6.280333333
A9: 2017 | B9: 6.949745777 | C9: 10.04140961 | D9: 3.858081949 | E9: 6.70271266 | F9: 9.547343372 | G9: 3.858081949 | H9: 4.41900775 | I9: 7.455426464 | J9: 1.382589035 | K9: 1.197759396 | L9: 2.395518792 | M9: 0
A10: =1+A9 -> 2018 | B10: 6.113190502 | C10: 10.39525147 | D10: 1.831129532 | E10: 3.814953285 | F10: 6.713499378 | G10: 0.9164071921 | H10: 4.389373331 | I10: 7.478889693 | J10: 1.29985697 | K10: 1.372508413 | L10: 2.745016825 | M10: 0
A11: 2019 | B11: 6.615841516 | C11: 10.87932917 | D11: 2.352353866 | E11: 4.025296441 | F11: 6.920239618 | G11: 1.130353264 | H11: 3.241200776 | I11: 6.375621181 | J11: 0.1067803705 | K11: 1.310404741 | L11: 2.620809482 | M11: 0
A12: 2020 | B12: 9.053752021 | C12: 11.88699929 | D12: 6.220504754 | E12: 9.053752021 | F12: 11.88699929 | G12: 6.220504754 | H12: 3.163009311 | I12: 5.556988112 | J12: 0.76903051 | K12: 2.215515049 | L12: 3.661999589 | M12: 0.76903051
A13: 2021 | B13: 11.87461362 | C13: 14.84 | D13: 8.909227246 | E13: 11.87461362 | F13: 14.84 | G13: 8.909227246 | H13: 3.317941287 | I13: 5.526891562 | J13: 1.108991012 | K13: 2.593358597 | L13: 4.077726181 | M13: 1.108991012
A14: 2022 | B14: 11.8743911 | C14: 14.84 | D14: 8.908782193 | E14: 11.8743911 | F14: 14.84 | G14: 8.908782193 | H14: 3.378652271 | I14: 5.602089335 | J14: 1.155215206 | K14: 2.639002932 | L14: 4.122790658 | M14: 1.155215206
A15: 2023 | B15: 11.87365113 | C15: 14.84 | D15: 8.907302268 | E15: 11.87365113 | F15: 14.84 | G15: 8.907302268 | H15: 3.585674436 | I15: 5.916340225 | J15: 1.255008647 | K15: 2.737825028 | L15: 4.220641409 | M15: 1.255008647
A16: 2024 | B16: 11.87279131 | C16: 14.84 | D16: 8.905582627 | E16: 11.87279131 | F16: 14.84 | G16: 8.905582627 | H16: 3.682636611 | I16: 6.03538798 | J16: 1.329885241 | K16: 2.812302975 | L16: 4.294720708 | M16: 1.329885241
A17: 2025 | B17: 11.87139897 | C17: 14.84 | D17: 8.902797941 | E17: 11.87139897 | F17: 14.84 | G17: 8.902797941 | H17: 3.877313677 | I17: 6.331412774 | J17: 1.423214581 | K17: 2.905485355 | L17: 4.387756129 | M17: 1.423214581
A18: 2026 | B18: 11.86960589 | C18: 14.84 | D18: 8.899211777 | E18: 11.86960589 | F18: 14.84 | G18: 8.899211777 | H18: 4.011021129 | I18: 6.507942565 | J18: 1.514099692 | K18: 2.996708187 | L18: 4.479316682 | M18: 1.514099692
A19: 2027 | B19: 11.86871544 | C19: 14.84 | D19: 8.897430872 | E19: 11.86871544 | F19: 14.84 | G19: 8.897430872 | H19: 4.294676274 | I19: 6.960256182 | J19: 1.629096365 | K19: 3.110629901 | L19: 4.592163437 | M19: 1.629096365
A20: 2028 | B20: 11.86759005 | C20: 14.84 | D20: 8.895180101 | E20: 11.86759005 | F20: 14.84 | G20: 8.895180101 | H20: 4.476481584 | I20: 7.229030464 | J20: 1.723932704 | K20: 3.205008703 | L20: 4.686084702 | M20: 1.723932704
A21: 2029 | B21: 11.86646789 | C21: 14.84 | D21: 8.892935785 | E21: 11.86646789 | F21: 14.84 | G21: 8.892935785 | H21: 4.657823252 | I21: 7.496859528 | J21: 1.818786976 | K21: 3.299403224 | L21: 4.780019472 | M21: 1.818786976
A22: 2030 | B22: 11.89102267 | C22: 14.89134744 | D22: 8.890697904 | E22: 11.86534895 | F22: 14.84 | G22: 8.890697904 | H22: 4.838702492 | I22: 7.763746698 | J22: 1.913658285 | K22: 3.393812576 | L22: 4.873966867 | M22: 1.913658285
A23: 2031 | B23: 12.09030755 | C23: 15.29214866 | D23: 8.888466441 | E23: 11.86423322 | F23: 14.84 | G23: 8.888466441 | H23: 5.019120514 | I23: 8.029695287 | J23: 2.008545741 | K23: 3.488235876 | L23: 4.967926012 | M23: 2.008545741
A24: 2032 | B24: 12.28884572 | C24: 15.69145006 | D24: 8.886241376 | E24: 11.86312069 | F24: 14.84 | G24: 8.886241376 | H24: 5.238396813 | I24: 8.294708595 | J24: 2.182085031 | K24: 3.582672244 | L24: 5.061896034 | M24: 2.103448454
A25: 2033 | B25: 12.48663998 | C25: 16.08925726 | D25: 8.884022692 | E25: 11.86201135 | F25: 14.84 | G25: 8.884022692 | H25: 5.513226482 | I25: 8.558789912 | J25: 2.467663053 | K25: 3.677120801 | L25: 5.155876063 | M25: 2.198365539 | N25: Forecasted Capacity Changes
A26: 2034 | B26: 12.68369311 | C26: 16.48557584 | D26: 8.88181037 | E26: 11.86090519 | F26: 14.84 | G26: 8.88181037 | H26: 5.787089638 | I26: 8.821942515 | J26: 2.752236762 | K26: 3.771580675 | L26: 5.249865234 | M26: 2.293296115 | O26: Year | P26: ICAP | Q26: ICAP | R26: Zone
A27: 2035 | B27: 12.88000789 | C27: 16.88041139 | D27: 8.879604393 | E27: 11.8598022 | F27: 14.84 | G27: 8.879604393 | H27: 6.05998968 | I27: 9.08416967 | J27: 3.03580969 | K27: 3.866050994 | L27: 5.343862685 | M27: 2.388239303 | P27: S | Q27: W
A28: 2036 | B28: 13.25562669 | C28: 17.27376944 | D28: 9.237483936 | E28: 11.85870237 | F28: 14.84 | G28: 8.877404741 | H28: 6.331929994 | I28: 9.345474632 | J28: 3.318385357 | K28: 3.960530891 | L28: 5.437867555 | M28: 2.483194227 | N28: START OF TABLE
A29: 2037 | B29: 13.66254884 | C29: 17.66565552 | D29: 9.659442164 | E29: 11.8576057 | F29: 14.84 | G29: 8.875211397 | H29: 6.602913956 | I29: 9.605860643 | J29: 3.599967269 | K29: 4.055019502 | L29: 5.531878988 | M29: 2.578160016 | N29: Greenidge | O29: 2017 | P29: 106.3 | Q29: 106.3 | R29: ROS
N30: Shoreham GT 3 & 4 | O30: 2018 | P30: =-45.4-44.6 -> -90 | Q30: =-45.4-45.7 -> -91.1 | R30: K
A31: Annual Capacity Prices ($/kW-year, 2017 $) | N31: Freeport GT | O31: 2018 | P31: -47.5 | Q31: -49 | R31: K
B32: NYC | E32: Lower Hudson Valley | H32: Long Island | K32: Rest-of-State | N32: CPV Valley | O32: 2018 | P32: 677.6 | Q32: 690.6 | R32: GHI
A33: =A9 -> 2017 | B33: =B9*12 -> 83.39694933 | E33: =E9*12 -> 80.43255192 | H33: =H9*12 -> 53.02809299 | K33: =K9*12 -> 14.37311275 | N33: Taylor Biomass* | O33: 2018 | P33: 19 | Q33: 22.5 | R33: GHI
A34: 2018 | B34: 73.35828603 | E34: 45.77943942 | H34: 52.67247998 | K34: 16.47010095 | N34: Bethlehem Uprate | O34: 2018 | P34: 72 | Q34: 51.2 | R34: ROS
A35: 2019 | B35: 79.39009819 | E35: 48.30355729 | H35: 38.89440931 | K35: 15.72485689 | N35: Copenhagen Wind** | O35: 2018 | P35: =79.9*P$50 -> 7.99 | Q35: =79.9*Q$50 -> 23.97 | R35: ROS
A36: 2020 | B36: 108.6450243 | E36: 108.6450243 | H36: 37.95611173 | K36: 26.58618059
A37: 2021 | B37: 142.4953635 | E37: 142.4953635 | H37: 39.81529544 | K37: 31.12030316
A38: 2022 | B38: 142.4926932 | E38: 142.4926932 | H38: 40.54382725 | K38: 31.66803519
A39: 2023 | B39: 142.4838136 | E39: 142.4838136 | H39: 43.02809323 | K39: 32.85390034 | N39: IP 2 | O39: 2020 | P39: -1012.1 | Q39: -1030.2 | R39: GHI
A40: 2024 | B40: 142.4734958 | E40: 142.4734958 | H40: 44.19163933 | K40: 33.7476357 | N40: IP 3 | O40: 2021 | P40: -1039.4 | Q40: -1040.9 | R40: GHI
A41: 2025 | B41: 142.4567876 | E41: 142.4567876 | H41: 46.52776413 | K41: 34.86582426
A42: 2026 | B42: 142.4352707 | E42: 142.4352707 | H42: 48.13225354 | K42: 35.96049824
A43: 2027 | B43: 142.4245852 | E43: 142.4245852 | H43: 51.53611528 | K43: 37.32755881
A44: 2028 | B44: 142.4110806 | E44: 142.4110806 | H44: 53.71777901 | K44: 38.46010444
A45: 2029 | B45: 142.3976147 | E45: 142.3976147 | H45: 55.89387902 | K45: 39.59283869
A46: 2030 | B46: 142.6922721 | E46: 142.3841874 | H46: 58.0644299 | K46: 40.72575092
A47: 2031 | B47: 145.0836906 | E47: 142.3707986 | H47: 60.22944617 | K47: 41.85883052
A48: =A24 -> 2032 | B48: =B24*12 -> 147.4661486 | E48: =E24*12 -> 142.3574483 | H48: =H24*12 -> 62.86076176 | K48: =K24*12 -> 42.99206692 | N48: END OF TABLE
A49: 2033 | B49: 149.8396797 | E49: 142.3441362 | H49: 66.15871779 | K49: 44.12544961 | N49: *Capacity subject to mitigation
A50: 2034 | B50: 152.2043173 | E50: 142.3308622 | H50: 69.44507566 | K50: 45.2589681 | N50: **Wind cf (S/W) assumed: | P50: 0.1 | Q50: 0.3
A51: 2035 | B51: 154.5600947 | E51: 142.3176264 | H51: 72.71987616 | K51: 46.39261193
A52: 2036 | B52: 159.0675202 | E52: 142.3044284 | H52: 75.98315993 | K52: 47.52637069
A53: 2037 | B53: 163.9505861 | E53: 142.2912684 | H53: 79.23496747 | K53: 48.66023403

Sheet DC Model
A1: ICAP Demand Curve Model*
D4: NYC (J) | G4: G-J(LHV) | J4: LI (K) | M4: NYCA
D5: Average | E5: Summer | F5: Winter | G5: Average | H5: Summer | I5: Winter | J5: Average | K5: Summer | L5: Winter | M5: Average | N5: Summer | O5: Winter
A6: IRM/LCR % | D6: 0.815 | G6: 0.915 | J6: 1.035 | M6: 1.18
A7: DC Length % | D7: 0.18 | G7: 0.15 | J7: 0.18 | M7: 0.12
A10: 2037 | B10: Input Year (2016-2036)**
A12: Ref Price (S/W & average) | D12: =AVERAGE(E12,F12) -> 14.62952778 | E12: 18.61 | F12: =E12+D16*D14*0.077 -> 10.64905556 | G12: =AVERAGE(H12,I12) -> 12.1688 | H12: 14.84 | I12: =H12+G16*G14*0.054 -> 9.4976 | J12: =AVERAGE(K12,L12) -> 10.07 | K12: 12.72 | L12: =K12+J16*J14*0.075 -> 7.42 | M12: =AVERAGE(N12,O12) -> 7.680166667 | N12: 9.08 | O12: =N12+M16*M14*0.037 -> 6.280333333
A13: Peak Load | D13: =VLOOKUP($A10,Demand,14,FALSE) -> 12522.79586 | G13: =VLOOKUP($A10,Demand,16,FALSE) -> 16820.15779 | J13: =VLOOKUP($A10,Demand,15,FALSE) -> 5457.933825 | M13: =VLOOKUP($A10,Demand,13,FALSE) -> 34146.88256
A14: ICAP LCR | D14: =D13*D$6 -> 10206.07863 | G14: =G13*G$6 -> 15390.44438 | J14: =J13*J$6 -> 5648.961509 | M14: =M13*M$6 -> 40293.32142
A15: DC Length MW | D15: =D14*D$7 -> 1837.094153 | G15: =G14*G$7 -> 2308.566657 | J15: =J14*J$7 -> 1016.813072 | M15: =M14*M$7 -> 4835.19857
A16: Slope | D16: =-E12/D15 -> -0.01013012859 | G16: =-H12/G15 -> -0.00642823111 | J16: =-K12/J15 -> -0.01250967396 | M16: =-N12/M15 -> -0.001877895989
A17: Total Supply | E17: =VLOOKUP($A10,Supply,4,FALSE) -> 10299.3 | F17: =VLOOKUP($A10,Supply,12,FALSE) -> 11089.6368 | H17: =VLOOKUP($A10,Supply,6,FALSE) -> 14127.1 | I17: =VLOOKUP($A10,Supply,14,FALSE) -> 14969.09771 | K17: =VLOOKUP($A10,Supply,5,FALSE) -> 5897.9 | L17: =VLOOKUP($A10,Supply,13,FALSE) -> 6377.999913 | N17: =VLOOKUP($A10,Supply,8,FALSE) -> 40919.39 | O17: =VLOOKUP($A10,Supply,16,FALSE) -> 42406.37
A18: Excess Supply | E18: =E17-D14 -> 93.22137098 | F18: =F17-D14 -> 883.558166 | H18: =H17-G14 -> -1263.344377 | I18: =I17-G14 -> -421.3466677 | K18: =K17-J14 -> 248.9384909 | L18: =L17-J14 -> 729.0384037 | N18: =N17-M14 -> 626.0685795 | O18: =O17-M14 -> 2113.048579
A19: Regional Reliability Additions*** | E19: =MAX(0,-E18) -> 0 | F19: =E19*1.087 -> 0 | H19: =MAX(0,-H18-E19) -> 1263.344377 | I19: =H19*1.068 -> 1349.251794 | K19: =MAX(0,-K18) -> 0 | L19: =K19*1.07 -> 0 | N19: =MAX(0,-N18-E19-H19-K19) -> 0 | O19: =N19*1.047 -> 0
A20: Augmented Supply | E20: =E17+E19 -> 10299.3 | F20: =F17+F19 -> 11089.6368 | H20: =H17+E19+H19 -> 15390.44438 | I20: =I17+F19+I19 -> 16318.3495 | K20: =K17+K19 -> 5897.9 | L20: =L17+L19 -> 6377.999913 | N20: =N17+N19+K19+H19+E19 -> 42182.73438 | O20: =O17+O19+L19+I19+F19 -> 43755.62179
A21: Augmented Excess | E21: =E20-D14 -> 93.22137098 | F21: =F20-D14 -> 883.558166 | H21: =H20-G14 -> 0 | I21: =I20-G14 -> 927.9051268 | K21: =K20-J14 -> 248.9384909 | L21: =L20-J14 -> 729.0384037 | N21: =N20-M14 -> 1889.412956 | O21: =O20-M14 -> 3462.300374
A22: DC Price | D22: =AVERAGE(E22:F22) -> 13.66254884 | E22: =E12+D16*E21 -> 17.66565552 | F22: =E12+D16*F21 -> 9.659442164 | G22: =AVERAGE(H22:I22) -> 11.8576057 | H22: =H12+G16*H21 -> 14.84 | I22: =H12+G16*I21 -> 8.875211397 | J22: =AVERAGE(K22:L22) -> 6.602913956 | K22: =K12+J16*K21 -> 9.605860643 | L22: =K12+J16*L21 -> 3.599967269 | M22: =AVERAGE(N22:O22) -> 4.055019502 | N22: =MAX(N12+M16*N21,0) -> 5.531878988 | O22: =MAX(N12+M16*O21,0) -> 2.578160016
A23: Cap DC Price at net CONE | D23: =AVERAGE(E23:F23) -> 13.66254884 | E23: =IF(D22>D12,E12,E22) -> 17.66565552 | F23: =IF(D22>D12,F12,F22) -> 9.659442164 | G23: =AVERAGE(H23:I23) -> 11.8576057 | H23: =IF(G22>G12,H12,H22) -> 14.84 | I23: =IF(G22>G12,I12,I22) -> 8.875211397 | J23: =AVERAGE(K23:L23) -> 6.602913956 | K23: =IF(J22>J12,K12,K22) -> 9.605860643 | L23: =IF(J22>J12,L12,L22) -> 3.599967269 | M23: =AVERAGE(N23:O23) -> 4.055019502 | N23: =IF(M22>M12,N12,N22) -> 5.531878988 | O23: =IF(M22>M12,O12,O22) -> 2.578160016
A24: ICAP Price Forecast | D24: =AVERAGE(E24:F24) -> 13.66254884 | E24: =MAX(E23,H24,N24) -> 17.66565552 | F24: =MAX(F23,I24,O24) -> 9.659442164 | G24: =AVERAGE(H24:I24) -> 11.8576057 | H24: =MAX(H23,N23) -> 14.84 | I24: =MAX(I23,O23) -> 8.875211397 | J24: =AVERAGE(K24:L24) -> 6.602913956 | K24: =MAX(K23,N23) -> 9.605860643 | L24: =MAX(L23,O23) -> 3.599967269 | M24: =AVERAGE(N24:O24) -> 4.055019502 | N24: =N23 -> 5.531878988 | O24: =O23 -> 2.578160016
A27: *Based on 2017 Reserve Margin & Locational Capacity Requirements and 2017 Demand Curve reference Prices
A28: **Input any year (2017-2037)
A29: ***G-J regional supplies are Lower Hudson Valley only (GHI supply); NYCA regional supplies are ROS only.

Sheet Demand
A1: Demand (Load) Forecast*
A3: Load | B3: A | C3: B | D3: C | E3: D | F3: E | G3: F | H3: G | I3: H | J3: I | K3: J | L3: K | M3: NYCA | N3: J NC Peak | O3: K NCPeak | P3: G-J NC Peak | Q3: ROS (A-F)
A6: 2017 | B6: 2653 | C6: 2000 | D6: 2852 | E6: 508 | F6: 1419 | G6: 2401 | H6: 2238 | I6: 656 | J6: 1492 | K6: 11575 | L6: 5384 | M6: =SUM(B6:L6) -> 33178 | N6: 11670 | O6: 5427 | P6: 16061 | Q6: =SUM(B6:G6) -> 11833
A7: =1+A6 -> 2018 | B7: 2655 | C7: 2003 | D7: 2855 | E7: 509 | F7: 1420 | G7: 2403 | H7: 2218 | I7: 653 | J7: 1486 | K7: 11613 | L7: 5263 | M7: 33078 | N7: 11707 | O7: 5305 | P7: 16070 | Q7: =SUM(B7:G7) -> 11845
A8: 2019 | B8: 2657 | C8: 2006 | D8: 2859 | E8: 509 | F8: 1421 | G8: 2405 | H8: 2197 | I8: 649 | J8: 1481 | K8: 11663 | L8: 5188 | M8: 33035 | N8: 11758 | O8: 5229 | P8: 16090 | Q8: 11857
A9: 2020 | B9: 2659 | C9: 2009 | D9: 2862 | E9: 509 | F9: 1421 | G9: 2406 | H9: 2180 | I9: 648 | J9: 1473 | K9: 11693 | L9: 5133 | M9: 32993 | N9: 11788 | O9: 5174 | P9: 16095 | Q9: 11866
A10: 2021 | B10: 2661 | C10: 2013 | D10: 2865 | E10: 509 | F10: 1422 | G10: 2407 | H10: 2169 | I10: 643 | J10: 1465 | K10: 11724 | L10: 5131 | M10: 33009 | N10: 11820 | O10: 5172 | P10: 16102 | Q10: 11877
A11: 2022 | B11: 2663 | C11: 2017 | D11: 2868 | E11: 509 | F11: 1423 | G11: 2408 | H11: 2157 | I11: 643 | J11: 1468 | K11: 11742 | L11: 5136 | M11: 33034 | N11: 11838 | O11: 5177 | P11: 16111 | Q11: 11888
A12: 2023 | B12: 2665 | C12: 2021 | D12: 2870 | E12: 510 | F12: 1424 | G12: 2409 | H12: 2151 | I12: 645 | J12: 1471 | K12: 11773 | L12: 5157 | M12: 33096 | N12: 11869 | O12: 5198 | P12: 16141 | Q12: 11899
A13: 2024 | B13: 2666 | C13: 2026 | D13: 2874 | E13: 510 | F13: 1426 | G13: 2410 | H13: 2145 | I13: 646 | J13: 1476 | K13: 11808 | L13: 5165 | M13: 33152 | N13: 11904 | O13: 5206 | P13: 16176 | Q13: 11912
A14: 2025 | B14: 2667 | C14: 2028 | D14: 2875 | E14: 510 | F14: 1426 | G14: 2410 | H14: 2140 | I14: 648 | J14: 1482 | K14: 11862 | L14: 5184 | M14: 33232 | N14: 11959 | O14: 5226 | P14: 16233 | Q14: 11916
A15: 2026 | B15: 2668 | C15: 2029 | D15: 2877 | E15: 510 | F15: 1427 | G15: 2410 | H15: 2136 | I15: 649 | J15: 1491 | K15: 11930 | L15: 5197 | M15: =SUM(B15:L15) -> 33324 | N15: 12027 | O15: 5238 | P15: 16307 | Q15: =SUM(B15:G15) -> 11921
A16: 2027 | B16: 2669 | C16: 2032 | D16: 2879 | E16: 510 | F16: 1428 | G16: 2410 | H16: 2132 | I16: 651 | J16: 1495 | K16: 11965 | L16: 5227 | M16: 33398 | N16: 12062 | O16: 5269 | P16: 16344 | Q16: 11928
A17: 2028 | B17: =B16*(B$16/B$11)^0.2 -> 2670.201621 | C17: =C16*(C$16/C$11)^0.2 -> 2035.01336 | D17: 2881.205058 | E17: 510.2002356 | F17: 1429.002106 | G17: 2410.400199 | H17: 2127.034879 | I17: 652.6119046 | J17: 1500.459301 | K17: 12010.10566 | L17: 5245.392574 | M17: =SUM(B17:L17) -> 33471.6269 | N17: =N16*(N$16/N$11)^0.2 -> 12107.30608 | O17: =O16*(O$16/O$11)^0.2 -> 5287.595268 | P17: =P16*(P$16/P$11)^0.2 -> 16391.00281 | Q17: =SUM(B17:G17) -> 11936.02258
A18: 2029 | B18: =B17*(B$16/B$11)^0.2 -> 2671.403784 | C18: 2038.031188 | D18: 2883.411804 | E18: 510.4005499 | F18: 1430.004916 | G18: 2410.800465 | H18: 2122.08132 | I18: 654.2278004 | J18: 1505.938539 | K18: 12055.38137 | L18: 5263.849868 | M18: 33545.5316 | N18: =N17*(N$16/N$11)^0.2 -> 12152.78234 | O18: =O17*(O$16/O$11)^0.2 -> 5306.256163 | P18: =P17*(P$16/P$11)^0.2 -> 16438.1408 | Q18: 11944.05271
A19: 2030 | B19: 2672.606487 | C19: 2041.053492 | D19: 2885.620241 | E19: 510.6009428 | F19: 1431.008429 | G19: 2411.200797 | H19: 2117.139298 | I19: 655.8476971 | J19: 1511.437784 | K19: 12100.82775 | L19: 5282.372108 | M19: 33619.71503 | N19: 12198.42941 | O19: 5324.982915 | P19: 16485.41435 | Q19: 11952.09039
A20: 2031 | B20: 2673.809732 | C20: 2044.080278 | D20: 2887.830369 | E20: 510.8014144 | F20: 1432.012646 | G20: 2411.601196 | H20: 2112.208785 | I20: 657.4716049 | J20: 1516.957112 | K20: 12146.44546 | L20: 5300.959524 | M20: 33694.17812 | N20: 12244.24793 | O20: 5343.775758 | P20: 16532.82384 | Q20: 11960.13563
A21: 2032 | B21: 2675.013519 | C21: 2047.111552 | D21: 2890.04219 | E21: 511.0019646 | F21: 1433.017569 | G21: 2412.001661 | H21: 2107.289754 | I21: 659.0995334 | J21: 1522.496594 | K21: 12192.23514 | L21: 5319.612344 | M21: 33768.92182 | N21: 12290.23855 | O21: 5362.634924 | P21: 16580.36969 | Q21: 11968.18845
A22: 2033 | B22: 2676.217847 | C22: 2050.147321 | D22: 2892.255705 | E22: 511.2025937 | F22: 1434.023196 | G22: 2412.402193 | H22: 2102.382179 | I22: 660.7314928 | J22: 1528.056305 | K22: 12238.19743 | L22: 5338.330799 | M22: 33843.94707 | N22: 12336.40192 | O22: 5381.560647 | P22: 16628.05226 | Q22: 11976.24886
A23: 2034 | B23: 2677.422718 | C23: 2053.187593 | D23: 2894.470915 | E23: 511.4033015 | F23: 1435.029529 | G23: 2412.802791 | H23: 2097.486034 | I23: 662.3674931 | J23: 1533.636318 | K23: 12284.333 | L23: 5357.115121 | M23: 33919.25481 | N23: 12382.73869 | O23: 5400.553163 | P23: 16675.87196 | Q23: 11984.31685
A24: 2035 | B24: 2678.628131 | C24: 2056.232373 | D24: 2896.687822 | E24: 511.604088 | F24: 1436.036568 | G24: 2413.203456 | H24: 2092.60129 | I24: 664.0075441 | J24: 1539.236708 | K24: 12330.64249 | L24: 5375.965539 | M24: 33994.846 | N24: 12429.24949 | O24: 5419.612706 | P24: 16723.82919 | Q24: 11992.39244
A25: 2036 | B25: 2679.834087 | C25: 2059.281668 | D25: 2898.906427 | E25: 511.8049535 | F25: 1437.044314 | G25: 2413.604187 | H25: 2087.727923 | I25: 665.6516559 | J25: 1544.857549 | K25: 12377.12655 | L25: 5394.882288 | M25: 34070.7216 | N25: 12475.935 | O25: 5438.739515 | P25: 16771.92433 | Q25: 12000.47564
A26: 2037 | B26: 2681.040586 | C26: 2062.335485 | D26: 2901.126731 | E26: 512.0058978 | F26: 1438.052767 | G26: 2414.004985 | H26: 2082.865905 | I26: 667.2998387 | J26: 1550.498916 | K26: 12423.78585 | L26: 5413.8656 | M26: 34146.88256 | N26: 12522.79586 | O26: 5457.933825 | P26: 16820.15779 | Q26: 12008.56645
A28: *From 2017 Gold Book Tables I-2a,I-2b-1, and I-2b-2;
A29: 2028-2037 load growth based on average load growth for 2022-2027.

Sheet Supply
A1: Supply Forecast*
B3: Summer | J3: Winter | R3: Exports from
A4: Year | B4: ROS (A-F) | C4: GHI | D4: J | E4: K | F4: G-J*** | G4: Imports | H4: NYCA** | J4: ROS (A-F) | K4: GHI | L4: J | M4: K | N4: G-J*** | O4: Imports | P4: NYCA** | R4: GHI to ISONE
A5: 2017 Gold Book | B5: ='ICAP 2017'!O10 -> 19426.9 | C5: ='ICAP 2017'!H10+'ICAP 2017'!I10+'ICAP 2017'!J10 -> 5182.7 | D5: ='ICAP 2017'!K10 -> 10299.3 | E5: ='ICAP 2017'!L10 -> 6035.4 | F5: =C5+D5 -> 15482 | G5: 2533 | H5: =B5+C5+D5+E5+G5-UDRsSummer -> 42502.3 | J5: ='ICAP 2017'!O16 -> 20178.70238 | K5: ='ICAP 2017'!H16+'ICAP 2017'!I16+'ICAP 2017'!J16 -> 5237.460914 | L5: ='ICAP 2017'!K16 -> 11089.6368 | M5: ='ICAP 2017'!L16 -> 6518.099913 | N5: =K5+L5 -> 16327.09771 | O5: 2310.8 | P5: =J5+K5+L5+M5+O5-UDRsWinter -> 44359.7
A6: 2017 | B6: =SUM(B$5,B$37:B37) -> 19533.2 | C6: =SUM(C$5,C$37:C37) -> 5182.7 | D6: =SUM(D$5,D$37:D37) -> 10299.3 | E6: =SUM(E$5,E$37:E37) -> 6035.4 | F6: =C6+D6-R6*D$31 -> 15482 | G6: 2533 | H6: 42608.6 | J6: =SUM(J$5,I$37:I37) -> 20285.00238 | K6: =SUM(K$5,J$37:J37) -> 5237.460914 | L6: =SUM(L$5,K$37:K37) -> 11089.6368 | M6: =SUM(M$5,L$37:L37) -> 6518.099913 | N6: =K6+L6-R6*D$31 -> 16327.09771 | O6: 2310.8 | P6: 44466
A7: =1+A6 -> 2018 | B7: =SUM(B$5,B$37:B38) -> 19613.19 | C7: =SUM(C$5,C$37:C38) -> 5879.3 | D7: =SUM(D$5,D$37:D38) -> 10299.3 | E7: =SUM(E$5,E$37:E38) -> 5897.9 | F7: 15911.858 | G7: 1585.2 | H7: 42299.89 | J7: =SUM(J$5,I$37:I38) -> 20360.17238 | K7: =SUM(K$5,J$37:J38) -> 5950.560914 | L7: =SUM(L$5,K$37:K38) -> 11089.6368 | M7: =SUM(M$5,L$37:L38) -> 6377.999913 | N7: =K7+L7-R7*D$31 -> 16773.45571 | O7: 1003.1 | P7: 43806.47 | R7: 511
A8: 2019 | B8: =SUM(B$5,B$37:B39) -> 19613.19 | C8: =SUM(C$5,C$37:C39) -> 5879.3 | D8: =SUM(D$5,D$37:D39) -> 10299.3 | E8: =SUM(E$5,E$37:E39) -> 5897.9 | F8: 15900.896 | G8: 1594.2 | H8: 42308.89 | J8: =SUM(J$5,I$37:I39) -> 20360.17238 | K8: =SUM(K$5,J$37:J39) -> 5950.560914 | L8: =SUM(L$5,K$37:K39) -> 11089.6368 | M8: =SUM(M$5,L$37:L39) -> 6377.999913 | N8: 16762.49371 | O8: 1012.1 | P8: 43815.47 | R8: 532
A9: 2020 | B9: =SUM(B$5,B$37:B40) -> 19613.19 | C9: =SUM(C$5,C$37:C40) -> 4867.2 | D9: =SUM(D$5,D$37:D40) -> 10299.3 | E9: =SUM(E$5,E$37:E40) -> 5897.9 | F9: 15166.5 | G9: 2016.8 | H9: 41719.39 | J9: =SUM(J$5,I$37:I40) -> 20360.17238 | K9: =SUM(K$5,J$37:J40) -> 4920.360914 | L9: =SUM(L$5,K$37:K40) -> 11089.6368 | M9: =SUM(M$5,L$37:L40) -> 6377.999913 | N9: 16009.99771 | O9: 1434.7 | P9: 43207.87
A10: 2021 | B10: =SUM(B$5,B$37:B41) -> 19613.19 | C10: =SUM(C$5,C$37:C41) -> 3827.8 | D10: =SUM(D$5,D$37:D41) -> 10299.3 | E10: =SUM(E$5,E$37:E41) -> 5897.9 | F10: 14127.1 | G10: 2256.2 | H10: 40919.39 | J10: =SUM(J$5,I$37:I41) -> 20360.17238 | K10: =SUM(K$5,J$37:J41) -> 3879.460914 | L10: =SUM(L$5,K$37:K41) -> 11089.6368 | M10: =SUM(M$5,L$37:L41) -> 6377.999913 | N10: 14969.09771 | O10: 1674.1 | P10: 42406.37
A11: 2022 | B11: =SUM(B$5,B$37:B42) -> 19613.19 | C11: =SUM(C$5,C$37:C42) -> 3827.8 | D11: =SUM(D$5,D$37:D42) -> 10299.3 | E11: =SUM(E$5,E$37:E42) -> 5897.9 | F11: 14127.1 | G11: 2256.2 | H11: 40919.39 | J11: =SUM(J$5,I$37:I42) -> 20360.17238 | K11: =SUM(K$5,J$37:J42) -> 3879.460914 | L11: =SUM(L$5,K$37:K42) -> 11089.6368 | M11: =SUM(M$5,L$37:L42) -> 6377.999913 | N11: 14969.09771 | O11: 1674.1 | P11: 42406.37
A12: 2023 | B12: =SUM(B$5,B$37:B43) -> 19613.19 | C12: =SUM(C$5,C$37:C43) -> 3827.8 | D12: =SUM(D$5,D$37:D43) -> 10299.3 | E12: =SUM(E$5,E$37:E43) -> 5897.9 | F12: 14127.1 | G12: 2256.2 | H12: 40919.39 | J12: =SUM(J$5,I$37:I43) -> 20360.17238 | K12: =SUM(K$5,J$37:J43) -> 3879.460914 | L12: =SUM(L$5,K$37:K43) -> 11089.6368 | M12: =SUM(M$5,L$37:L43) -> 6377.999913 | N12: 14969.09771 | O12: 1674.1 | P12: 42406.37
A13: 2024 | B13: =SUM(B$5,B$37:B44) -> 19613.19 | C13: =SUM(C$5,C$37:C44) -> 3827.8 | D13: =SUM(D$5,D$37:D44) -> 10299.3 | E13: =SUM(E$5,E$37:E44) -> 5897.9 | F13: 14127.1 | G13: 2256.2 | H13: 40919.39 | J13: =SUM(J$5,I$37:I44) -> 20360.17238 | K13: =SUM(K$5,J$37:J44) -> 3879.460914 | L13: =SUM(L$5,K$37:K44) -> 11089.6368 | M13: =SUM(M$5,L$37:L44) -> 6377.999913 | N13: 14969.09771 | O13: 1674.1 | P13: 42406.37
A14: 2025 | B14: =SUM(B$5,B$37:B45) -> 19613.19 | C14: =SUM(C$5,C$37:C45) -> 3827.8 | D14: =SUM(D$5,D$37:D45) -> 10299.3 | E14: =SUM(E$5,E$37:E45) -> 5897.9 | F14: 14127.1 | G14: 2256.2 | H14: 40919.39 | J14: =SUM(J$5,I$37:I45) -> 20360.17238 | K14: =SUM(K$5,J$37:J45) -> 3879.460914 | L14: =SUM(L$5,K$37:K45) -> 11089.6368 | M14: =SUM(M$5,L$37:L45) -> 6377.999913 | N14: 14969.09771 | O14: 1674.1 | P14: 42406.37
A15: 2026 | B15: =SUM(B$5,B$37:B46) -> 19613.19 | C15: =SUM(C$5,C$37:C46) -> 3827.8 | D15: =SUM(D$5,D$37:D46) -> 10299.3 | E15: =SUM(E$5,E$37:E46) -> 5897.9 | F15: 14127.1 | G15: 2256.2 | H15: 40919.39 | J15: =SUM(J$5,I$37:I46) -> 20360.17238 | K15: =SUM(K$5,J$37:J46) -> 3879.460914 | L15: =SUM(L$5,K$37:K46) -> 11089.6368 | M15: =SUM(M$5,L$37:L46) -> 6377.999913 | N15: 14969.09771 | O15: 1674.1 | P15: 42406.37
A16: 2027 | B16: =SUM(B$5,B$37:B47) -> 19613.19 | C16: =SUM(C$5,C$37:C47) -> 3827.8 | D16: =SUM(D$5,D$37:D47) -> 10299.3 | E16: =SUM(E$5,E$37:E47) -> 5897.9 | F16: 14127.1 | G16: 2256.2 | H16: 40919.39 | J16: =SUM(J$5,I$37:I47) -> 20360.17238 | K16: =SUM(K$5,J$37:J47) -> 3879.460914 | L16: =SUM(L$5,K$37:K47) -> 11089.6368 | M16: =SUM(M$5,L$37:L47) -> 6377.999913 | N16: 14969.09771 | O16: 1674.1 | P16: 42406.37
A17: 2028 | B17: =SUM(B$5,B$37:B48) -> 19613.19 | C17: =SUM(C$5,C$37:C48) -> 3827.8 | D17: =SUM(D$5,D$37:D48) -> 10299.3 | E17: =SUM(E$5,E$37:E48) -> 5897.9 | F17: 14127.1 | G17: 2256.2 | H17: 40919.39 | J17: =SUM(J$5,I$37:I48) -> 20360.17238 | K17: =SUM(K$5,J$37:J48) -> 3879.460914 | L17: =SUM(L$5,K$37:K48) -> 11089.6368 | M17: =SUM(M$5,L$37:L48) -> 6377.999913 | N17: 14969.09771 | O17: 1674.1 | P17: 42406.37
A18: 2029 | B18: =SUM(B$5,B$37:B49) -> 19613.19 | C18: =SUM(C$5,C$37:C49) -> 3827.8 | D18: =SUM(D$5,D$37:D49) -> 10299.3 | E18: =SUM(E$5,E$37:E49) -> 5897.9 | F18: 14127.1 | G18: 2256.2 | H18: 40919.39 | J18: =SUM(J$5,I$37:I49) -> 20360.17238 | K18: =SUM(K$5,J$37:J49) -> 3879.460914 | L18: =SUM(L$5,K$37:K49) -> 11089.6368 | M18: =SUM(M$5,L$37:L49) -> 6377.999913 | N18: 14969.09771 | O18: 1674.1 | P18: 42406.37
A19: 2030 | B19: =SUM(B$5,B$37:B50) -> 19613.19 | C19: =SUM(C$5,C$37:C50) -> 3827.8 | D19: =SUM(D$5,D$37:D50) -> 10299.3 | E19: =SUM(E$5,E$37:E50) -> 5897.9 | F19: 14127.1 | G19: 2256.2 | H19: 40919.39 | J19: =SUM(J$5,I$37:I50) -> 20360.17238 | K19: =SUM(K$5,J$37:J50) -> 3879.460914 | L19: =SUM(L$5,K$37:K50) -> 11089.6368 | M19: =SUM(M$5,L$37:L50) -> 6377.999913 | N19: 14969.09771 | O19: 1674.1 | P19: 42406.37
A20: 2031 | B20: =SUM(B$5,B$37:B51) -> 19613.19 | C20: =SUM(C$5,C$37:C51) -> 3827.8 | D20: =SUM(D$5,D$37:D51) -> 10299.3 | E20: =SUM(E$5,E$37:E51) -> 5897.9 | F20: 14127.1 | G20: 2256.2 | H20: 40919.39 | J20: =SUM(J$5,I$37:I51) -> 20360.17238 | K20: =SUM(K$5,J$37:J51) -> 3879.460914 | L20: =SUM(L$5,K$37:K51) -> 11089.6368 | M20: =SUM(M$5,L$37:L51) -> 6377.999913 | N20: 14969.09771 | O20: 1674.1 | P20: 42406.37
A21: 2032 | B21: =SUM(B$5,B$37:B52) -> 19613.19 | C21: =SUM(C$5,C$37:C52) -> 3827.8 | D21: =SUM(D$5,D$37:D52) -> 10299.3 | E21: =SUM(E$5,E$37:E52) -> 5897.9 | F21: 14127.1 | G21: 2256.2 | H21: 40919.39 | J21: =SUM(J$5,I$37:I52) -> 20360.17238 | K21: =SUM(K$5,J$37:J52) -> 3879.460914 | L21: =SUM(L$5,K$37:K52) -> 11089.6368 | M21: =SUM(M$5,L$37:L52) -> 6377.999913 | N21: 14969.09771 | O21: 1674.1 | P21: 42406.37
A22: 2033 | B22: =SUM(B$5,B$37:B53) -> 19613.19 | C22: =SUM(C$5,C$37:C53) -> 3827.8 | D22: =SUM(D$5,D$37:D53) -> 10299.3 | E22: =SUM(E$5,E$37:E53) -> 5897.9 | F22: 14127.1 | G22: 2256.2 | H22: 40919.39 | J22: =SUM(J$5,I$37:I53) -> 20360.17238 | K22: =SUM(K$5,J$37:J53) -> 3879.460914 | L22: =SUM(L$5,K$37:K53) -> 11089.6368 | M22: =SUM(M$5,L$37:L53) -> 6377.999913 | N22: 14969.09771 | O22: 1674.1 | P22: 42406.37
A23: 2034 | B23: =SUM(B$5,B$37:B54) -> 19613.19 | C23: =SUM(C$5,C$37:C54) -> 3827.8 | D23: =SUM(D$5,D$37:D54) -> 10299.3 | E23: =SUM(E$5,E$37:E54) -> 5897.9 | F23: 14127.1 | G23: 2256.2 | H23: 40919.39 | J23: =SUM(J$5,I$37:I54) -> 20360.17238 | K23: =SUM(K$5,J$37:J54) -> 3879.460914 | L23: =SUM(L$5,K$37:K54) -> 11089.6368 | M23: =SUM(M$5,L$37:L54) -> 6377.999913 | N23: 14969.09771 | O23: 1674.1 | P23: 42406.37
A24: 2035 | B24: =SUM(B$5,B$37:B55) -> 19613.19 | C24: =SUM(C$5,C$37:C55) -> 3827.8 | D24: =SUM(D$5,D$37:D55) -> 10299.3 | E24: =SUM(E$5,E$37:E55) -> 5897.9 | F24: 14127.1 | G24: 2256.2 | H24: 40919.39 | J24: =SUM(J$5,I$37:I55) -> 20360.17238 | K24: =SUM(K$5,J$37:J55) -> 3879.460914 | L24: =SUM(L$5,K$37:K55) -> 11089.6368 | M24: =SUM(M$5,L$37:L55) -> 6377.999913 | N24: 14969.09771 | O24: 1674.1 | P24: 42406.37
A25: 2036 | B25: =SUM(B$5,B$37:B56) -> 19613.19 | C25: =SUM(C$5,C$37:C56) -> 3827.8 | D25: =SUM(D$5,D$37:D56) -> 10299.3 | E25: =SUM(E$5,E$37:E56) -> 5897.9 | F25: 14127.1 | G25: 2256.2 | H25: 40919.39 | J25: =SUM(J$5,I$37:I56) -> 20360.17238 | K25: =SUM(K$5,J$37:J56) -> 3879.460914 | L25: =SUM(L$5,K$37:K56) -> 11089.6368 | M25: =SUM(M$5,L$37:L56) -> 6377.999913 | N25: 14969.09771 | O25: 1674.1 | P25: 42406.37
A26: 2037 | B26: =SUM(B$5,B$37:B57) -> 19613.19 | C26: =SUM(C$5,C$37:C57) -> 3827.8 | D26: =SUM(D$5,D$37:D57) -> 10299.3 | E26: =SUM(E$5,E$37:E57) -> 5897.9 | F26: 14127.1 | G26: 2256.2 | H26: 40919.39 | J26: =SUM(J$5,I$37:I57) -> 20360.17238 | K26: =SUM(K$5,J$37:J57) -> 3879.460914 | L26: =SUM(L$5,K$37:K57) -> 11089.6368 | M26: =SUM(M$5,L$37:L57) -> 6377.999913 | N26: 14969.09771 | O26: 1674.1 | P26: 42406.37
A28: *Generation, SCRs and UDRs from Tab "ICAP 2017"; Net Imports from Table V-1
A29: **NYCA total includes Net Imports (from Table V-1) - UDR imports (already counted as Generation Supply).
A30: ***G-J includes impact of net exports on locality supply
A31: GHI to ISONE Export Factor: | D31: =1-0.478 -> 0.522
A33: Annual Capacity Changes by Region
B34: Summer | I34: Winter
A35: Year | B35: ROS | C35: GHI | D35: J | E35: K | F35: NCZ (G-J) | G35: NYCA | I35: ROS (A-F) | J35: GHI | K35: J | L35: K | M35: NCZ (G-J) | N35: NYCA
A37: 2017 | B37: =SUMIFS(cap,year,A37,zone,"=ROS") -> 106.3 | C37: =SUMIFS(cap,year,$A37,zone,"=GHI") -> 0 | D37: =SUMIFS(cap,year,$A37,zone,"=J") -> 0 | E37: =SUMIFS(cap,year,$A37,zone,"=K") -> 0 | F37: =C37+D37 -> 0 | G37: =B37+F37+E37 -> 106.3 | I37: =SUMIFS(wcap,year,A37,zone,"=ROS") -> 106.3 | J37: =SUMIFS(wcap,year,$A37,zone,"=GHI") -> 0 | K37: =SUMIFS(wcap,year,$A37,zone,"=J") -> 0 | L37: =SUMIFS(wcap,year,$A37,zone,"=K") -> 0 | M37: =J37+K37 -> 0 | N37: =I37+M37+L37 -> 106.3
A38: =1+A37 -> 2018 | B38: 79.99 | C38: =SUMIFS(cap,year,A38,zone,"=GHI") -> 696.6 | D38: 0 | E38: -137.5 | F38: =C38+D38 -> 696.6 | G38: 639.09 | I38: 75.17 | J38: 713.1 | K38: 0 | L38: -140.1 | M38: =J38+K38 -> 713.1 | N38: 648.17
A39: 2019 | B39: 0 | C39: 0 | D39: 0 | E39: 0 | F39: =C39+D39 -> 0 | G39: 0 | I39: 0 | J39: 0 | K39: 0 | L39: 0 | M39: =J39+K39 -> 0 | N39: 0
A40: 2020 | B40: 0 | C40: -1012.1 | D40: 0 | E40: 0 | F40: =C40+D40 -> -1012.1 | G40: -1012.1 | I40: 0 | J40: -1030.2 | K40: 0 | L40: 0 | M40: =J40+K40 -> -1030.2 | N40: -1030.2
A41: 2021 | B41: 0 | C41: -1039.4 | D41: 0 | E41: 0 | F41: =C41+D41 -> -1039.4 | G41: -1039.4 | I41: 0 | J41: -1040.9 | K41: 0 | L41: 0 | M41: -1040.9 | N41: -1040.9
A42: 2022 | B42: 0 | C42: 0 | D42: 0 | E42: 0 | F42: 0 | G42: 0 | I42: 0 | J42: 0 | K42: 0 | L42: 0 | M42: 0 | N42: 0
A43: 2023 | B43: 0 | C43: 0 | D43: 0 | E43: 0 | F43: 0 | G43: 0 | I43: 0 | J43: 0 | K43: 0 | L43: 0 | M43: 0 | N43: 0
A44: 2024 | B44: 0 | C44: 0 | D44: 0 | E44: 0 | F44: 0 | G44: 0 | I44: 0 | J44: 0 | K44: 0 | L44: 0 | M44: 0 | N44: 0
A45: 2025 | B45: 0 | C45: 0 | D45: 0 | E45: 0 | F45: 0 | G45: 0 | I45: 0 | J45: 0 | K45: 0 | L45: 0 | M45: 0 | N45: 0
A46: 2026 | B46: 0 | C46: 0 | D46: 0 | E46: 0 | F46: 0 | G46: 0 | I46: 0 | J46: 0 | K46: 0 | L46: 0 | M46: 0 | N46: 0
A47: =1+A46 -> 2027 | B47: 0 | C47: 0 | D47: 0 | E47: 0 | F47: =C47+D47 -> 0 | G47: 0 | I47: 0 | J47: 0 | K47: 0 | L47: 0 | M47: =J47+K47 -> 0 | N47: 0
A48: =1+A47 -> 2028 | B48: 0 | C48: 0 | D48: 0 | E48: 0 | F48: =C48+D48 -> 0 | G48: 0 | I48: 0 | J48: 0 | K48: 0 | L48: 0 | M48: =J48+K48 -> 0 | N48: 0
A49: 2029 | B49: 0 | C49: 0 | D49: 0 | E49: 0 | F49: 0 | G49: 0 | I49: 0 | J49: 0 | K49: 0 | L49: 0 | M49: 0 | N49: 0
A50: 2030 | B50: 0 | C50: 0 | D50: 0 | E50: 0 | F50: 0 | G50: 0 | I50: 0 | J50: 0 | K50: 0 | L50: 0 | M50: 0 | N50: 0
A51: 2031 | B51: 0 | C51: 0 | D51: 0 | E51: 0 | F51: 0 | G51: 0 | I51: 0 | J51: 0 | K51: 0 | L51: 0 | M51: 0 | N51: 0
A52: 2032 | B52: 0 | C52: 0 | D52: 0 | E52: 0 | F52: 0 | G52: 0 | I52: 0 | J52: 0 | K52: 0 | L52: 0 | M52: 0 | N52: 0
A53: 2033 | B53: 0 | C53: 0 | D53: 0 | E53: 0 | F53: 0 | G53: 0 | I53: 0 | J53: 0 | K53: 0 | L53: 0 | M53: 0 | N53: 0
A54: 2034 | B54: 0 | C54: 0 | D54: 0 | E54: 0 | F54: 0 | G54: 0 | I54: 0 | J54: 0 | K54: 0 | L54: 0 | M54: 0 | N54: 0
A55: 2035 | B55: 0 | C55: 0 | D55: 0 | E55: 0 | F55: 0 | G55: 0 | I55: 0 | J55: 0 | K55: 0 | L55: 0 | M55: 0 | N55: 0
A56: =1+A55 -> 2036 | B56: 0 | C56: 0 | D56: 0 | E56: 0 | F56: =C56+D56 -> 0 | G56: 0 | I56: 0 | J56: 0 | K56: 0 | L56: 0 | M56: =J56+K56 -> 0 | N56: 0
A57: 2037 | B57: 0 | C57: 0 | D57: 0 | E57: 0 | F57: 0 | G57: 0 | I57: 0 | J57: 0 | K57: 0 | L57: 0 | M57: 0 | N57: 0

Sheet ICAP 2017
A1: ICAP Zonal Supply by Capability Period, from 2017 Gold Book Table III-3
A5: Zone | B5: A | C5: B | D5: C | E5: D | F5: E | G5: F | H5: G | I5: H | J5: I | K5: J | L5: K | M5: NYCA | N5: G-J | O5: ROS
A7: Summer | B7: 3965.4 | C7: 767.7 | D7: 6635.8 | E7: 1927.4 | F7: 1036.5 | G7: 4410.7 | H7: 3004 | I7: 2092.4 | J7: 0 | K7: 9612.3 | L7: 5325.1 | M7: =SUM(B7:L7) -> 38777.3 | N7: =SUM(H7:K7) -> 14708.7 | O7: =M7-N7-L7 -> 18743.5 | P7: Gen from Table III-3a
B8: 301.7 | C8: 73.9 | D8: 116.6 | E8: 62.4 | F8: 37.5 | G8: 91.3 | H8: 53.9 | I8: 7.4 | J8: 25 | K8: 372 | L8: 50.3 | M8: 1191.8 | N8: =SUM(H8:K8) -> 458.3 | O8: =M8-N8-L8 -> 683.2 | P8: SCR ICAP from 2016 DR Report, Table 3
K9: 315 | L9: 660 | M9: =SUM(K9:L9) -> 975 | N9: =SUM(H9:K9) -> 315 | O9: =M9-N9-L9 -> 0 | P9: UDRs*
B10: =B7+B8 -> 4267.1 | C10: 841.6 | D10: 6752.4 | E10: 1989.8 | F10: 1074 | G10: 4502 | H10: 3057.9 | I10: 2099.8 | J10: =J7+J8 -> 25 | K10: =K7+K8+K9 -> 10299.3 | L10: =L7+L8+L9 -> 6035.4 | M10: =SUM(B10:L10) -> 40944.3 | N10: =SUM(H10:K10) -> 15482 | O10: 19426.9 | P10: NYCA Supply (exc. ROS imports)
A13: Winter | B13: 4053.4 | C13: 781.5 | D13: 6943.5 | E13: 1930.7 | F13: 1069.1 | G13: 4927.5 | H13: 3065.4 | I13: 2124 | J13: 0 | K13: 10544.1 | L13: 5817.3 | M13: =SUM(B13:L13) -> 41256.5 | N13: =SUM(H13:K13) -> 15733.5 | O13: =M13-N13-L13 -> 19705.7 | P13: Gen from Table III-3b
B14: =B19*$M14/$M19 -> 210.5690411 | C14: 40.28126977 | D14: 82.80999236 | E14: 55.23547507 | F14: 26.88299335 | G14: 57.22360641 | H14: 28.26604123 | I14: 4.581346133 | J14: 15.21352678 | K14: 230.536795 | L14: =L19*$M14/$M19 -> 40.79991273 | M14: 792.4 | N14: 278.5977092 | O14: =M14-N14-L14 -> 473.0023781 | P14: SCR ICAP estimate**
K15: 315 | L15: 660 | M15: =SUM(K15:L15) -> 975 | N15: 315 | O15: 0 | P15: UDRs*
B16: =B13+B14 -> 4263.969041 | C16: =C13+C14 -> 821.7812698 | D16: 7026.309992 | E16: 1985.935475 | F16: 1095.982993 | G16: 4984.723606 | H16: 3093.666041 | I16: 2128.581346 | J16: 15.21352678 | K16: =K13+K14+K15 -> 11089.6368 | L16: =L13+L14+L15 -> 6518.099913 | M16: =SUM(B16:L16) -> 43023.9 | N16: 16327.09771 | O16: 20178.70238 | P16: NYCA Supply (exc. ROS imports)
A19: SCR Winter Obligation 2015-16 | B19: 243.6 | C19: 46.6 | D19: 95.8 | E19: 63.9 | F19: 31.1 | G19: 66.2 | H19: 32.7 | I19: 5.3 | J19: 17.6 | K19: 266.7 | L19: 47.2 | M19: =SUM(B19:L19) -> 916.7 | N19: =SUM(H19:K19) -> 322.3 | O19: =SUM(B19:G19) -> 547.2 | P19: DR Report for 2016, Table 9
A21: *Assumes UDRs (import delivery rights) for full capacity of Neptune and VFT controllable lines from PJM
A23: **Estimate Winter SCR ICAP by zone = SCR ICAP total (from Table V-2b) x SCR ICAP Obligation by zone / SCR Winter Obligation Total (from 2016 DR Report Table 9)
